Workbook

Sheet Input
D2: 2022
B7: ="Development of BGS-RSCP Cost and Bid Factors for "&(Input!D2)&"/"&(Input!D2+1)&" BGS Filing" -> Development of BGS-RSCP Cost and Bid Factors for 2022/2023 BGS Filing
B8: Adjusted to Billing Time Periods
E9: ="Based on average of year "&(Input!D2-4)&", "&(Input!D2-3)&" & "&(Input!D2-2)&" Load Profile Information" -> Based on average of year 2018, 2019 & 2020 Load Profile Information
A10: Table #1 | B10: % Usage During PJM On-Peak Period | E10: On-Peak periods defined as the 16 hr PJM Trading period, adj for NERC holidays
C11: Profile Meter Data | D11: Profile Meter Data | E11: Profile Meter Data | F11: Profile Meter Data | G11: Profile Meter Data | H11: Profile Meter Data | I11: --- Other Analysis --- | K11: Profile Meter Data | L11: Profile Meter Data
B12: (data rounded to nearest .01%) | C12: RS | D12: RHS | E12: RLM | F12: WH | G12: WHS | H12: HS | I12: PSAL | J12: BPL | K12: GLP | L12: LPL-S
B14: January | C14: 0.4917 | D14: 0.487 | E14: 0.4893 | F14: 0.4917 | G14: 0.4917 | H14: 0.4923 | I14: 0.314 | J14: 0.314 | K14: 0.555 | L14: 0.5373
B15: February | C15: 0.4823 | D15: 0.4687 | E15: 0.4787 | F15: 0.4823 | G15: 0.4823 | H15: 0.4767 | I15: 0.291 | J15: 0.291 | K15: 0.5477 | L15: 0.533
B16: March | C16: 0.4877 | D16: 0.478 | E16: 0.4807 | F16: 0.4877 | G16: 0.4877 | H16: 0.491 | I16: 0.2483 | J16: 0.2483 | K16: 0.5463 | L16: 0.5313
B17: April | C17: 0.504 | D17: 0.5073 | E17: 0.5013 | F17: 0.504 | G17: 0.504 | H17: 0.5303 | I17: 0.23 | J17: 0.23 | K17: 0.5663 | L17: 0.549
B18: May | C18: 0.4877 | D18: 0.4977 | E18: 0.4993 | F18: 0.4877 | G18: 0.4877 | H18: 0.5677 | I18: 0.2083 | J18: 0.2083 | K18: 0.5607 | L18: 0.5417
B19: June | C19: 0.507 | D19: 0.515 | E19: 0.5257 | F19: 0.507 | G19: 0.507 | H19: 0.6067 | I19: 0.1973 | J19: 0.1973 | K19: 0.5727 | L19: 0.5533
B20: July | C20: 0.5097 | D20: 0.519 | E20: 0.5287 | F20: 0.5097 | G20: 0.5097 | H20: 0.6087 | I20: 0.198 | J20: 0.198 | K20: 0.579 | L20: 0.5527
B21: August | C21: 0.523 | D21: 0.5293 | E21: 0.5357 | F21: 0.523 | G21: 0.523 | H21: 0.6217 | I21: 0.2157 | J21: 0.2157 | K21: 0.5833 | L21: 0.5527
B22: September | C22: 0.4837 | D22: 0.4897 | E22: 0.493 | F22: 0.4837 | G22: 0.4837 | H22: 0.586 | I22: 0.226 | J22: 0.226 | K22: 0.5547 | L22: 0.532
B23: October | C23: 0.5223 | D23: 0.5227 | E23: 0.5227 | F23: 0.5223 | G23: 0.5223 | H23: 0.5913 | I23: 0.2773 | J23: 0.2773 | K23: 0.59 | L23: 0.5713
B24: November | C24: 0.473 | D24: 0.4643 | E24: 0.4663 | F24: 0.473 | G24: 0.473 | H24: 0.4923 | I24: 0.303 | J24: 0.303 | K24: 0.5363 | L24: 0.5193
B25: December | C25: 0.4773 | D25: 0.466 | E25: 0.476 | F25: 0.4773 | G25: 0.4773 | H25: 0.4807 | I25: 0.3083 | J25: 0.3083 | K25: 0.528 | L25: 0.511
E27: =E9 -> Based on average of year 2018, 2019 & 2020 Load Profile Information
A28: Table #2 | B28: % Usage During PSE&G On-Peak Billing Period | E28: ="On-Peak periods as defined in specified rate schedule (average of %s for "&(Input!D2-4)&", "&(Input!D2-3)&" & "&(Input!D2-2)&")" -> On-Peak periods as defined in specified rate schedule (average of %s for 2018, 2019 & 2020)
C29: Profile Meter Data | D29: Profile Meter Data
B30: (data rounded to nearest .01%) | C30: RLM | D30: LPL-S
B32: January | C32: 0.4252 | D32: 0.4703
B33: February | C33: 0.4151 | D33: 0.4777
B34: March | C34: 0.416 | D34: 0.4753
B35: April | C35: 0.4238 | D35: 0.4748
B36: May | C36: 0.4405 | D36: 0.485
B37: June | C37: 0.4597 | D37: 0.4951
B38: July | C38: 0.4815 | D38: 0.4948
B39: August | C39: 0.4809 | D39: 0.4925
B40: September | C40: 0.4895 | D40: 0.4969
B41: October | C41: 0.4557 | D41: 0.4981
B42: November | C42: 0.4295 | D42: 0.4899
B43: December | C43: 0.4275 | D43: 0.4755
A46: Table #3 | B46: Class Usage @ customer
B47: ="Calendar month sales forecasted for "&(Input!D2)&", less % for LPL-Sec > 500 kW Peak Load Share" -> Calendar month sales forecasted for 2022, less % for LPL-Sec > 500 kW Peak Load Share
B48: in MWh | C48: RS | D48: RHS | E48: RLM | F48: WH | G48: WHS | H48: HS | I48: PSAL | J48: BPL | K48: GLP | L48: LPL-S
B50: January | C50: 1216460.804 | D50: 15356.34876 | E50: 16023.81113 | F50: 58 | G50: 1 | H50: 1312.707364 | I50: 15557 | J50: 32676 | K50: 536039.0154 | L50: 625960.3908
B51: February | C51: 985328.4763 | D51: 11760.93958 | E51: 13924.87537 | F51: 57 | G51: 1 | H51: 1175.880633 | I51: 12802 | J51: 29367 | K51: 488422.3116 | L51: 567126.4684
B52: March | C52: 925316.1368 | D52: 9237.811175 | E52: 13405.29047 | F52: 64 | G52: 1 | H52: 913.8367121 | I52: 12379 | J52: 27322 | K52: 503121.6694 | L52: 586310.1776
B53: April | C53: 785557.0302 | D53: 4853.070636 | E53: 11144.394 | F53: 53 | G53: 1 | H53: 613.6471569 | I53: 10748 | J53: 26105 | K53: 450984.0481 | L53: 522039.9826
B54: May | C54: 823748.9856 | D54: 3364.171201 | E54: 11489.84775 | F54: 61 | G54: 1 | H54: 301.0188081 | I54: 9616 | J54: 21208 | K54: 459594.0241 | L54: 620087.1684
B55: June | C55: 1290025.097 | D55: 4510.604253 | E55: 18697.56695 | F55: 46 | G55: 1 | H55: 398.0413991 | I55: 8470 | J55: 19103 | K55: 497554.2589 | L55: 587083.7822
B56: July | C56: 1730592.129 | D56: 6291.234311 | E56: 22415.17352 | F56: 36 | G56: 1 | H56: 430.3822628 | I56: 9055 | J56: 18825 | K56: 603493.1787 | L56: 639717.6464
B57: August | C57: 1592628.994 | D57: 5967.305994 | E57: 21296.42765 | F57: 40 | G57: 0 | H57: 501.6980134 | I57: 10329 | J57: 19965 | K57: 610019.5201 | L57: 662758.1565
B58: September | C58: 908539.5536 | D58: 4079.350288 | E58: 13967.00387 | F58: 42 | G58: 1 | H58: 362.3835238 | I58: 10991 | J58: 21876 | K58: 519714.2357 | L58: 604949.6283
B59: October | C59: 658896.5339 | D59: 5618.009796 | E59: 10464.72078 | F59: 20 | G59: 1 | H59: 431.2115157 | I59: 13089 | J59: 26616 | K59: 476897.2875 | L59: 606421.7914
B60: November | C60: 721135.9562 | D60: 8358.716555 | E60: 9526.659388 | F60: 43 | G60: 1 | H60: 522.4293363 | I60: 13505 | J60: 27571 | K60: 432735.4556 | L60: 533458.1891
B61: December | C61: 1003987.06 | D61: 12198.04767 | E61: 12509.35758 | F61: 55 | G61: 1 | H61: 1031.590626 | I61: 15040 | J61: 29607 | K61: 500440.4031 | L61: 608622.6718
C62: =SUM(C50:C61) -> 12642216.76 | D62: =SUM(D50:D61) -> 91595.61021 | E62: 174865.1285 | F62: 575 | G62: 11 | H62: 7994.827351 | I62: 141581 | J62: 300241 | K62: 6079015.408 | L62: 7164536.054
B64: LPL-S > 500 kW PLS | C64: % of | D64: % of
C65: kWh | D65: Gen Obl
C66: 0.3508881504 | D66: 0.3417207445
A70: Table #4 | B70: Forwards Prices - Energy Only @ bulk system | E70: Table #5 | F70: Zone to Western Hub Basis Differential
B71: in $/MWh, not including PJM losses | F71: Off/On Pk
C72: On-Peak | F72: LMP ratio
B73: January | C73: 67.2 | E73: Summer | F73: 0.6683658171
B74: February | C74: 63 | E74: Winter | F74: 0.7716561567
B75: March | C75: 45.2
B76: April | C76: 40.8
B77: May | C77: 40.9
B78: June | C78: 44.35 | F78: Basis
B79: July | C79: 50.8 | F79: On-Peak | G79: Off-Peak
B80: August | C80: 47.55 | E80: Summer | F80: 0.8879039176 | G80: 0.8947592671
B81: September | C81: 45.45 | E81: Winter | F81: 0.9039584685 | G81: 0.9421868454
B82: October | C82: 45.05
B83: November | C83: 46.6
B84: December | C84: 48.9
A88: Table #6 | B88: Loss Type | C88: Percentage | D88: Source
B89: Delivery Losses | C89: 0.058327 | D89: Tariff (Result of 2018 Rate Case Loss Study)
B90: EHV Losses | C90: 0.00456 | D90: PJM - No update for 2021
B91: Marginal Loss Deration Factor | C91: 0.01168869481 | D91: NERA
A96: Table #10 | B96: Generation & Transmission Obligations and Costs and Other Adjustments
B97: Obligations - Peak Load shares eff 6/1/22, scaling factors eff 1/1/22, Transmission Loads eff 1/1/22; costs are market estimates
B98: in MW
C100: RS | D100: RHS | E100: RLM | F100: WH | G100: WHS | H100: HS | I100: PSAL | J100: BPL | K100: GLP | L100: LPL-S
B101: Generation Peak Load Share | C101: 4302.469352 | D101: 17.81945849 | E101: 57.39088781 | F101: 0 | G101: 0 | H101: 2.76347962 | I101: 0 | J101: 0 | K101: 1567.73861 | L101: 1254.89234
B102: Tranmsission Obligation | C102: 4775.071423 | D102: 20.01730202 | E102: 64.53252811 | F102: 0 | G102: 0 | H102: 3.022432883 | I102: 0 | J102: 0 | K102: 1685.27096 | L102: 1318.840483
B104: Final Zonal RPM Scaling Factor | C104: 1.074076859
B105: ="PJM January 1, "&(Input!D2)&" (through May 31, "&(Input!D2)&") Forecast Pool Requirement" -> PJM January 1, 2022 (through May 31, 2022) Forecast Pool Requirement | C105: 1.0871
B107: NITS Rate | D107: Tranches | E107: NITS Rate
C108: 2019 | D108: 28 | E108: 104709.15
C109: 2020 | D109: 28 | E109: 138497.0843
C110: 2021 | D110: 29 | E110: 144787.9774
E112: Base Capacity
B113: Generation Capacity cost | C113: summer = | E113: 104.84 | F113: $/MW/day
C114: winter = | E114: 104.84 | F114: $/MW/day
C118: RS | D118: RHS
B119: Required summer inversion = | C119: 0.8652 | D119: 1.1569 | E119: ¢/kWh | F119: (same as 2003/2004 BGS blocking inversion)(generally not updated)
A122: Table #11 | B122: Ancillary Services & Renewable Power Cost
B123: Ancillary Services | D123: 2 | E123: per MWh @ bulk system
B124: Renewable Power Cost | D124: 16.09 | E124: per MWh @ bulk system
A129: Bill Impacts | B129: BGS - CIEP BRA Clearing Price ($ per MW/Day)
B130: Annual Obligation Clearing Price | D130: 351.06 | E130: per MWh
A135: auction results and rates | B135: Specific BGS-FP Auction >> | C135: remaining portion of 36 month bid - 2020 auction | D135: remaining portion of 36 month bid - 2021 auction | E135: 36 month bid - 2022 auction
B136: Winning Bid - in $/MWh | C136: 102.16 | D136: 64.8 | E136: 57.48
B137: # of Tranches for Bid | C137: 28 | D137: 29 | E137: 28
B138: Use Estimated amount in cell e136 | E138: Yes
B139: Payment Factors
B140: Summer | C140: 1 | D140: 1 | E140: 1
B141: Winter | C141: 1 | D141: 1 | E141: 1

Sheet Att 2
B2: =Input!B7 -> Development of BGS-RSCP Cost and Bid Factors for 2022/2023 BGS Filing
B3: Adjusted to Billing Time Periods
E4: =+Input!E9 -> Based on average of year 2018, 2019 & 2020 Load Profile Information
A5: Table #1 | B5: % Usage During PJM On-Peak Period | E5: On-Peak periods defined as the 16 hr PJM Trading period, adj for NERC holidays | O5: % usage during Off-Peak period
C6: Profile Meter Data | D6: Profile Meter Data | E6: Profile Meter Data | F6: Profile Meter Data | G6: Profile Meter Data | H6: Profile Meter Data | I6: --- Other Analysis --- | K6: Profile Meter Data | L6: Profile Meter Data | O6: Profile Meter Data | P6: Profile Meter Data | Q6: Profile Meter Data | R6: Profile Meter Data | S6: Profile Meter Data | T6: Profile Meter Data | U6: -- Other Analysis -- | W6: Profile Meter Data | X6: Profile Meter Data
B7: (data rounded to nearest .01%) | C7: RS | D7: RHS | E7: RLM | F7: WH | G7: WHS | H7: HS | I7: PSAL | J7: BPL | K7: GLP | L7: LPL-S | O7: =+C7 -> RS | P7: =+D7 -> RHS | Q7: RLM | R7: WH | S7: WHS | T7: HS | U7: PSAL | V7: BPL | W7: GLP | X7: LPL-S
B9: January | C9: =Input!C14 -> 0.4917 | D9: =Input!D14 -> 0.487 | E9: =Input!E14 -> 0.4893 | F9: =Input!F14 -> 0.4917 | G9: =Input!G14 -> 0.4917 | H9: =Input!H14 -> 0.4923 | I9: =Input!I14 -> 0.314 | J9: =Input!J14 -> 0.314 | K9: =Input!K14 -> 0.555 | L9: =Input!L14 -> 0.5373 | O9: =1-C9 -> 0.5083 | P9: 0.513 | Q9: 0.5107 | R9: 0.5083 | S9: 0.5083 | T9: 0.5077 | U9: 0.686 | V9: 0.686 | W9: 0.445 | X9: 0.4627
B10: February | C10: =Input!C15 -> 0.4823 | D10: =Input!D15 -> 0.4687 | E10: =Input!E15 -> 0.4787 | F10: =Input!F15 -> 0.4823 | G10: =Input!G15 -> 0.4823 | H10: =Input!H15 -> 0.4767 | I10: =Input!I15 -> 0.291 | J10: =Input!J15 -> 0.291 | K10: =Input!K15 -> 0.5477 | L10: =Input!L15 -> 0.533 | O10: 0.5177 | P10: 0.5313 | Q10: 0.5213 | R10: 0.5177 | S10: 0.5177 | T10: 0.5233 | U10: 0.709 | V10: 0.709 | W10: 0.4523 | X10: 0.467
B11: March | C11: =Input!C16 -> 0.4877 | D11: =Input!D16 -> 0.478 | E11: =Input!E16 -> 0.4807 | F11: =Input!F16 -> 0.4877 | G11: =Input!G16 -> 0.4877 | H11: =Input!H16 -> 0.491 | I11: =Input!I16 -> 0.2483 | J11: =Input!J16 -> 0.2483 | K11: =Input!K16 -> 0.5463 | L11: =Input!L16 -> 0.5313 | O11: 0.5123 | P11: 0.522 | Q11: 0.5193 | R11: 0.5123 | S11: 0.5123 | T11: 0.509 | U11: 0.7517 | V11: 0.7517 | W11: 0.4537 | X11: 0.4687
B12: April | C12: =Input!C17 -> 0.504 | D12: =Input!D17 -> 0.5073 | E12: =Input!E17 -> 0.5013 | F12: =Input!F17 -> 0.504 | G12: =Input!G17 -> 0.504 | H12: =Input!H17 -> 0.5303 | I12: =Input!I17 -> 0.23 | J12: =Input!J17 -> 0.23 | K12: =Input!K17 -> 0.5663 | L12: =Input!L17 -> 0.549 | O12: 0.496 | P12: 0.4927 | Q12: 0.4987 | R12: 0.496 | S12: 0.496 | T12: 0.4697 | U12: 0.77 | V12: 0.77 | W12: 0.4337 | X12: 0.451
B13: May | C13: =Input!C18 -> 0.4877 | D13: =Input!D18 -> 0.4977 | E13: =Input!E18 -> 0.4993 | F13: =Input!F18 -> 0.4877 | G13: =Input!G18 -> 0.4877 | H13: =Input!H18 -> 0.5677 | I13: =Input!I18 -> 0.2083 | J13: =Input!J18 -> 0.2083 | K13: =Input!K18 -> 0.5607 | L13: =Input!L18 -> 0.5417 | O13: 0.5123 | P13: 0.5023 | Q13: 0.5007 | R13: 0.5123 | S13: 0.5123 | T13: 0.4323 | U13: 0.7917 | V13: 0.7917 | W13: 0.4393 | X13: 0.4583
B14: June | C14: =Input!C19 -> 0.507 | D14: =Input!D19 -> 0.515 | E14: =Input!E19 -> 0.5257 | F14: =Input!F19 -> 0.507 | G14: =Input!G19 -> 0.507 | H14: =Input!H19 -> 0.6067 | I14: =Input!I19 -> 0.1973 | J14: =Input!J19 -> 0.1973 | K14: =Input!K19 -> 0.5727 | L14: =Input!L19 -> 0.5533 | O14: 0.493 | P14: 0.485 | Q14: 0.4743 | R14: 0.493 | S14: 0.493 | T14: 0.3933 | U14: 0.8027 | V14: 0.8027 | W14: 0.4273 | X14: 0.4467
B15: July | C15: =Input!C20 -> 0.5097 | D15: =Input!D20 -> 0.519 | E15: =Input!E20 -> 0.5287 | F15: =Input!F20 -> 0.5097 | G15: =Input!G20 -> 0.5097 | H15: =Input!H20 -> 0.6087 | I15: =Input!I20 -> 0.198 | J15: =Input!J20 -> 0.198 | K15: =Input!K20 -> 0.579 | L15: =Input!L20 -> 0.5527 | O15: 0.4903 | P15: 0.481 | Q15: 0.4713 | R15: 0.4903 | S15: 0.4903 | T15: 0.3913 | U15: 0.802 | V15: 0.802 | W15: 0.421 | X15: 0.4473
B16: August | C16: =Input!C21 -> 0.523 | D16: =Input!D21 -> 0.5293 | E16: =Input!E21 -> 0.5357 | F16: =Input!F21 -> 0.523 | G16: =Input!G21 -> 0.523 | H16: =Input!H21 -> 0.6217 | I16: =Input!I21 -> 0.2157 | J16: =Input!J21 -> 0.2157 | K16: =Input!K21 -> 0.5833 | L16: =Input!L21 -> 0.5527 | O16: 0.477 | P16: 0.4707 | Q16: 0.4643 | R16: 0.477 | S16: 0.477 | T16: 0.3783 | U16: 0.7843 | V16: 0.7843 | W16: 0.4167 | X16: 0.4473
B17: September | C17: =Input!C22 -> 0.4837 | D17: =Input!D22 -> 0.4897 | E17: =Input!E22 -> 0.493 | F17: =Input!F22 -> 0.4837 | G17: =Input!G22 -> 0.4837 | H17: =Input!H22 -> 0.586 | I17: =Input!I22 -> 0.226 | J17: =Input!J22 -> 0.226 | K17: =Input!K22 -> 0.5547 | L17: =Input!L22 -> 0.532 | O17: 0.5163 | P17: 0.5103 | Q17: 0.507 | R17: 0.5163 | S17: 0.5163 | T17: 0.414 | U17: 0.774 | V17: 0.774 | W17: 0.4453 | X17: 0.468
B18: October | C18: =Input!C23 -> 0.5223 | D18: =Input!D23 -> 0.5227 | E18: =Input!E23 -> 0.5227 | F18: =Input!F23 -> 0.5223 | G18: =Input!G23 -> 0.5223 | H18: =Input!H23 -> 0.5913 | I18: =Input!I23 -> 0.2773 | J18: =Input!J23 -> 0.2773 | K18: =Input!K23 -> 0.59 | L18: =Input!L23 -> 0.5713 | O18: 0.4777 | P18: 0.4773 | Q18: 0.4773 | R18: 0.4777 | S18: 0.4777 | T18: 0.4087 | U18: 0.7227 | V18: 0.7227 | W18: 0.41 | X18: 0.4287
B19: November | C19: =Input!C24 -> 0.473 | D19: =Input!D24 -> 0.4643 | E19: =Input!E24 -> 0.4663 | F19: =Input!F24 -> 0.473 | G19: =Input!G24 -> 0.473 | H19: =Input!H24 -> 0.4923 | I19: =Input!I24 -> 0.303 | J19: =Input!J24 -> 0.303 | K19: =Input!K24 -> 0.5363 | L19: =Input!L24 -> 0.5193 | O19: 0.527 | P19: 0.5357 | Q19: 0.5337 | R19: 0.527 | S19: 0.527 | T19: 0.5077 | U19: 0.697 | V19: 0.697 | W19: 0.4637 | X19: 0.4807
B20: December | C20: =Input!C25 -> 0.4773 | D20: =Input!D25 -> 0.466 | E20: =Input!E25 -> 0.476 | F20: =Input!F25 -> 0.4773 | G20: =Input!G25 -> 0.4773 | H20: =Input!H25 -> 0.4807 | I20: =Input!I25 -> 0.3083 | J20: =Input!J25 -> 0.3083 | K20: =Input!K25 -> 0.528 | L20: =Input!L25 -> 0.511 | O20: 0.5227 | P20: 0.534 | Q20: 0.524 | R20: 0.5227 | S20: 0.5227 | T20: 0.5193 | U20: 0.6917 | V20: 0.6917 | W20: 0.472 | X20: 0.489
E22: =+Input!E9 -> Based on average of year 2018, 2019 & 2020 Load Profile Information
A23: Table #2 | B23: % Usage During PSE&G On-Peak Billing Period | E23: =Input!E28 -> On-Peak periods as defined in specified rate schedule (average of %s for 2018, 2019 & 2020)
C24: N/A | D24: N/A | E24: Profile Meter Data | F24: N/A | G24: N/A | H24: N/A | I24: N/A | J24: N/A | K24: N/A | L24: Profile Meter Data | O24: N/A | P24: N/A | Q24: Actual Billed Sales | R24: N/A | S24: N/A | T24: N/A | U24: N/A | V24: N/A | W24: N/A | X24: Actual Billed Sales
B25: (data rounded to nearest .01%) | C25: =+C7 -> RS | D25: =+D7 -> RHS | E25: RLM | F25: WH | G25: WHS | H25: HS | I25: PSAL | J25: BPL | K25: GLP | L25: LPL-S | O25: =+C7 -> RS | P25: =+D7 -> RHS | Q25: RLM | R25: WH | S25: WHS | T25: HS | U25: PSAL | V25: BPL | W25: GLP | X25: LPL-S
B27: January | C27: 0 | D27: 0 | E27: =Input!C32 -> 0.4252 | F27: 0 | G27: 0 | H27: 0 | I27: 0 | J27: 0 | K27: 0 | L27: =Input!D32 -> 0.4703 | Q27: =1-E27 -> 0.5748 | X27: =1-L27 -> 0.5297
B28: February | C28: 0 | D28: 0 | E28: =Input!C33 -> 0.4151 | F28: 0 | G28: 0 | H28: 0 | I28: 0 | J28: 0 | K28: 0 | L28: =Input!D33 -> 0.4777 | Q28: 0.5849 | X28: 0.5223
B29: March | C29: 0 | D29: 0 | E29: =Input!C34 -> 0.416 | F29: 0 | G29: 0 | H29: 0 | I29: 0 | J29: 0 | K29: 0 | L29: =Input!D34 -> 0.4753 | Q29: 0.584 | X29: 0.5247
B30: April | C30: 0 | D30: 0 | E30: =Input!C35 -> 0.4238 | F30: 0 | G30: 0 | H30: 0 | I30: 0 | J30: 0 | K30: 0 | L30: =Input!D35 -> 0.4748 | Q30: 0.5762 | X30: 0.5252
B31: May | C31: 0 | D31: 0 | E31: =Input!C36 -> 0.4405 | F31: 0 | G31: 0 | H31: 0 | I31: 0 | J31: 0 | K31: 0 | L31: =Input!D36 -> 0.485 | Q31: 0.5595 | X31: 0.515
B32: June | C32: 0 | D32: 0 | E32: =Input!C37 -> 0.4597 | F32: 0 | G32: 0 | H32: 0 | I32: 0 | J32: 0 | K32: 0 | L32: =Input!D37 -> 0.4951 | Q32: 0.5403 | X32: 0.5049
B33: July | C33: 0 | D33: 0 | E33: =Input!C38 -> 0.4815 | F33: 0 | G33: 0 | H33: 0 | I33: 0 | J33: 0 | K33: 0 | L33: =Input!D38 -> 0.4948 | Q33: 0.5185 | X33: 0.5052
B34: August | C34: 0 | D34: 0 | E34: =Input!C39 -> 0.4809 | F34: 0 | G34: 0 | H34: 0 | I34: 0 | J34: 0 | K34: 0 | L34: =Input!D39 -> 0.4925 | Q34: 0.5191 | X34: 0.5075
B35: September | C35: 0 | D35: 0 | E35: =Input!C40 -> 0.4895 | F35: 0 | G35: 0 | H35: 0 | I35: 0 | J35: 0 | K35: 0 | L35: =Input!D40 -> 0.4969 | Q35: 0.5105 | X35: 0.5031
B36: October | C36: 0 | D36: 0 | E36: =Input!C41 -> 0.4557 | F36: 0 | G36: 0 | H36: 0 | I36: 0 | J36: 0 | K36: 0 | L36: =Input!D41 -> 0.4981 | Q36: 0.5443 | X36: 0.5019
B37: November | C37: 0 | D37: 0 | E37: =Input!C42 -> 0.4295 | F37: 0 | G37: 0 | H37: 0 | I37: 0 | J37: 0 | K37: 0 | L37: =Input!D42 -> 0.4899 | Q37: 0.5705 | X37: 0.5101
B38: December | C38: 0 | D38: 0 | E38: =Input!C43 -> 0.4275 | F38: 0 | G38: 0 | H38: 0 | I38: 0 | J38: 0 | K38: 0 | L38: =Input!D43 -> 0.4755 | Q38: 0.5725 | X38: 0.5245
A41: Table #3 | B41: Class Usage @ customer | O41: Usage by season - PSE&G periods
B42: =Input!B47 -> Calendar month sales forecasted for 2022, less % for LPL-Sec > 500 kW Peak Load Share | L42: < 500 kW | AB42: Total | AD42: LPL-S > 500 kW PLS
B43: in MWh | C43: =+C7 -> RS | D43: =+D7 -> RHS | E43: RLM | F43: WH | G43: WHS | H43: HS | I43: PSAL | J43: BPL | K43: GLP | L43: LPL-S | O43: =+C7 -> RS | P43: =+D7 -> RHS | Q43: RLM | R43: WH | S43: WHS | T43: HS | U43: PSAL | V43: BPL | W43: GLP | X43: LPL-S | Z43: % | AB43: LPL-S | AD43: % of | AE43: % of | AF43: % of
AD44: kWh | AE44: Gen Obl | AF44: Trans Obl
B45: January | C45: =Input!C50 -> 1216460.804 | D45: =Input!D50 -> 15356.34876 | E45: =Input!E50 -> 16023.81113 | F45: =Input!F50 -> 58 | G45: =Input!G50 -> 1 | H45: =Input!H50 -> 1312.707364 | I45: =Input!I50 -> 15557 | J45: =Input!J50 -> 32676 | K45: =Input!K50 -> 536039.0154 | L45: =AB45*$M$45 -> 406318.307 | M45: =(1-AD45) -> 0.6491118496 | N45: winter MWh = | O45: =SUM(C45:C49,C54:C56) -> 7120430.984 | P45: =SUM(D45:D49,D54:D56) -> 70747.11537 | Q45: 98488.95646 | R45: 411 | S45: 8 | T45: 6302.322152 | U45: 102736 | V45: 220472 | W45: 3848234.215 | X45: 3031369.76 | Y45: =SUM(O45:X45) -> 14499200.35 | Z45: =+Y45/(Y45+Y49) -> 0.6019092687 | AB45: =Input!L50 -> 625960.3908 | AD45: =Input!C66 -> 0.3508881504 | AE45: =Input!D66 -> 0.3417207445 | AF45: =AE45 -> 0.3417207445
B46: February | C46: =Input!C51 -> 985328.4763 | D46: =Input!D51 -> 11760.93958 | E46: =Input!E51 -> 13924.87537 | F46: =Input!F51 -> 57 | G46: =Input!G51 -> 1 | H46: =Input!H51 -> 1175.880633 | I46: =Input!I51 -> 12802 | J46: =Input!J51 -> 29367 | K46: =Input!K51 -> 488422.3116 | L46: =AB46*$M$45 -> 368128.5109 | N46: on-peak | Q46: =SUMPRODUCT(E27:E31,E45:E49)+SUMPRODUCT(E36:E38,E54:E56) -> 42162.63703 | X46: =SUMPRODUCT(L27:L31,L45:L49)+SUMPRODUCT(L36:L38,L54:L56) -> 1457506.345 | AB46: =Input!L51 -> 567126.4684
B47: March | C47: =Input!C52 -> 925316.1368 | D47: =Input!D52 -> 9237.811175 | E47: =Input!E52 -> 13405.29047 | F47: =Input!F52 -> 64 | G47: =Input!G52 -> 1 | H47: =Input!H52 -> 913.8367121 | I47: =Input!I52 -> 12379 | J47: =Input!J52 -> 27322 | K47: =Input!K52 -> 503121.6694 | L47: 380580.8838 | N47: off-peak | O47: =+O45-O46 -> 7120430.984 | P47: =+P45-P46 -> 70747.11537 | Q47: =+Q45-Q46 -> 56326.31943 | R47: =+R45-R46 -> 411 | X47: =+X45-X46 -> 1573863.415 | AB47: =Input!L52 -> 586310.1776
B48: April | C48: =Input!C53 -> 785557.0302 | D48: =Input!D53 -> 4853.070636 | E48: =Input!E53 -> 11144.394 | F48: =Input!F53 -> 53 | G48: =Input!G53 -> 1 | H48: =Input!H53 -> 613.6471569 | I48: =Input!I53 -> 10748 | J48: =Input!J53 -> 26105 | K48: =Input!K53 -> 450984.0481 | L48: 338862.3386 | AB48: =Input!L53 -> 522039.9826
B49: May | C49: =Input!C54 -> 823748.9856 | D49: =Input!D54 -> 3364.171201 | E49: =Input!E54 -> 11489.84775 | F49: =Input!F54 -> 61 | G49: =Input!G54 -> 1 | H49: =Input!H54 -> 301.0188081 | I49: =Input!I54 -> 9616 | J49: =Input!J54 -> 21208 | K49: =Input!K54 -> 459594.0241 | L49: 402505.9288 | N49: summer MWh = | O49: =SUM(C50:C53) -> 5521785.773 | P49: =+SUM(D50:D53) -> 20848.49485 | Q49: 76376.17199 | R49: 164 | S49: 3 | T49: 1692.505199 | U49: 38845 | V49: 79769 | W49: 2230781.193 | X49: 1619215.489 | Y49: =SUM(O49:X49) -> 9589480.628 | Z49: =1-Z45 -> 0.3980907313 | AB49: =Input!L54 -> 620087.1684
B50: June | C50: =Input!C55 -> 1290025.097 | D50: =Input!D55 -> 4510.604253 | E50: =Input!E55 -> 18697.56695 | F50: =Input!F55 -> 46 | G50: =Input!G55 -> 1 | H50: =Input!H55 -> 398.0413991 | I50: =Input!I55 -> 8470 | J50: =Input!J55 -> 19103 | K50: =Input!K55 -> 497554.2589 | L50: 381083.0397 | N50: on-peak | Q50: =+SUMPRODUCT(E32:E35,E50:E53) -> 36466.47803 | X50: =+SUMPRODUCT(L32:L35,L50:L53) -> 801137.3074 | AB50: =Input!L55 -> 587083.7822
B51: July | C51: =Input!C56 -> 1730592.129 | D51: =Input!D56 -> 6291.234311 | E51: =Input!E56 -> 22415.17352 | F51: =Input!F56 -> 36 | G51: =Input!G56 -> 1 | H51: =Input!H56 -> 430.3822628 | I51: =Input!I56 -> 9055 | J51: =Input!J56 -> 18825 | K51: =Input!K56 -> 603493.1787 | L51: 415248.3047 | N51: off-peak | Q51: =+Q49-Q50 -> 39909.69396 | X51: =+X49-X50 -> 818078.1819 | AB51: =Input!L56 -> 639717.6464
B52: August | C52: =Input!C57 -> 1592628.994 | D52: =Input!D57 -> 5967.305994 | E52: =Input!E57 -> 21296.42765 | F52: =Input!F57 -> 40 | G52: =Input!G57 -> 0 | H52: =Input!H57 -> 501.6980134 | I52: =Input!I57 -> 10329 | J52: =Input!J57 -> 19965 | K52: =Input!K57 -> 610019.5201 | L52: 430204.1728 | AB52: =Input!L57 -> 662758.1565
B53: September | C53: =Input!C58 -> 908539.5536 | D53: =Input!D58 -> 4079.350288 | E53: =Input!E58 -> 13967.00387 | F53: =Input!F58 -> 42 | G53: =Input!G58 -> 1 | H53: =Input!H58 -> 362.3835238 | I53: =Input!I58 -> 10991 | J53: =Input!J58 -> 21876 | K53: =Input!K58 -> 519714.2357 | L53: 392679.9721 | N53: Block 1 | O53: =+O49*C163 -> 3567073.609 | P53: =+P49*D163 -> 13780.85509 | AB53: =Input!L58 -> 604949.6283
B54: October | C54: =Input!C59 -> 658896.5339 | D54: =Input!D59 -> 5618.009796 | E54: =Input!E59 -> 10464.72078 | F54: =Input!F59 -> 20 | G54: =Input!G59 -> 1 | H54: =Input!H59 -> 431.2115157 | I54: =Input!I59 -> 13089 | J54: =Input!J59 -> 26616 | K54: =Input!K59 -> 476897.2875 | L54: 393635.5707 | N54: Block 2 | O54: =+O49-O53 -> 1954712.164 | P54: =+P49-P53 -> 7067.639752 | AB54: =Input!L59 -> 606421.7914
B55: November | C55: =Input!C60 -> 721135.9562 | D55: =Input!D60 -> 8358.716555 | E55: =Input!E60 -> 9526.659388 | F55: =Input!F60 -> 43 | G55: =Input!G60 -> 1 | H55: =Input!H60 -> 522.4293363 | I55: =Input!I60 -> 13505 | J55: =Input!J60 -> 27571 | K55: =Input!K60 -> 432735.4556 | L55: 346274.0318 | AB55: =Input!L60 -> 533458.1891
B56: December | C56: =Input!C61 -> 1003987.06 | D56: =Input!D61 -> 12198.04767 | E56: =Input!E61 -> 12509.35758 | F56: =Input!F61 -> 55 | G56: =Input!G61 -> 1 | H56: =Input!H61 -> 1031.590626 | I56: =Input!I61 -> 15040 | J56: =Input!J61 -> 29607 | K56: =Input!K61 -> 500440.4031 | L56: 395064.1882 | AB56: =Input!L61 -> 608622.6718
B57: Total | C57: =SUM(C45:C56) -> 12642216.76 | D57: =SUM(D45:D56) -> 91595.61021 | E57: =SUM(E45:E56) -> 174865.1285 | F57: 575 | G57: 11 | H57: =SUM(H45:H56) -> 7994.827351 | I57: =SUM(I45:I56) -> 141581 | J57: =SUM(J45:J56) -> 300241 | K57: 6079015.408 | L57: =SUM(L45:L56) -> 4650585.249 | O57: Usage by season/period - PJM periods | AB57: =SUM(AB45:AB56) -> 7164536.054
O58: in MWhs
Y59: Total | Z59: %
A60: Table #4 | B60: Forwards Prices - Energy Only @ bulk system | G60: Table #5 | H60: Zone to Western Hub Basis Differential | N60: Winter
B61: in $/MWh, not including PJM losses | D61: Off/On Pk | E61: Resulting | N61: on-peak | O61: =SUMPRODUCT(C9:C13,C45:C49)+SUMPRODUCT(C18:C20,C54:C56) -> 3486739.496 | P61: =SUMPRODUCT(D9:D13,D45:D49)+SUMPRODUCT(D18:D20,D54:D56) -> 34044.65474 | Q61: 48140.42248 | R61: 200.7207 | S61: 3.926 | T61: 3159.840369 | U61: 28517.4652 | V61: 60874.3579 | W61: 2130630.515 | X61: 1627384.738 | Y61: =SUM(O61:X61) -> 7419696.136 | Z61: =+Y61/(Y61+Y62) -> 0.5117314028
C62: On-Peak | D62: LMP ratio | E62: Off-Peak | H62: On-Peak | I62: Off-Peak | N62: off-peak | O62: =+O45-O61 -> 3633691.488 | P62: =+P45-P61 -> 36702.46063 | Q62: 50348.53398 | R62: 210.2793 | S62: 4.074 | T62: 3142.481783 | U62: 74218.5348 | V62: 159597.6421 | W62: 1717603.7 | X62: 1403985.022 | Y62: =SUM(O62:X62) -> 7079504.216 | Z62: =1-Z61 -> 0.4882685972
B63: January | C63: =Input!C73 -> 67.2 | D63: =Input!F74 -> 0.7716561567 | E63: =ROUND(+C63*D63,3) -> 51.855 | H63: =Input!F81 -> 0.9039584685 | I63: =Input!G81 -> 0.9421868454 | J63: NYMEX Forwards (January 5, 2022) from NERA
B64: February | C64: =Input!C74 -> 63 | D64: =+$D$63 -> 0.7716561567 | E64: =ROUND(+C64*D64,3) -> 48.614 | H64: =+$H$63 -> 0.9039584685 | I64: =+$I$63 -> 0.9421868454 | N64: Summer
B65: March | C65: =Input!C75 -> 45.2 | D65: =+$D$63 -> 0.7716561567 | E65: =ROUND(+C65*D65,3) -> 34.879 | H65: =+$H$63 -> 0.9039584685 | I65: =+$I$63 -> 0.9421868454 | J65: Congestion Factors & On/Off Peak Ratios | N65: on-peak | O65: =SUMPRODUCT(C14:C17,C50:C53) -> 2808531.078 | P65: =SUMPRODUCT(D14:D17,D50:D53) -> 10744.2647 | Q65: 39974.44239 | R65: 82.9066 | S65: 1.5004 | T65: 1027.7278 | U65: 8175.9523 | V65: 16746.7984 | W65: 1278481.747 | X65: 887040.5753 | Y65: 5050806.993 | Z65: =+Y65/(Y65+Y66) -> 0.5267028726
B66: April | C66: =Input!C76 -> 40.8 | D66: =+$D$63 -> 0.7716561567 | E66: 31.484 | H66: =+$H$63 -> 0.9039584685 | I66: =+$I$63 -> 0.9421868454 | J66: Summer Averages for Aug 2018-July 2021 | N66: off-peak | O66: =+O49-O65 -> 2713254.695 | P66: =+P49-P65 -> 10104.23015 | Q66: 36401.72961 | R66: 81.0934 | S66: 1.4996 | T66: 664.777399 | U66: 30669.0477 | V66: 63022.2016 | W66: 952299.4462 | X66: 732174.914 | Y66: 4538673.635 | Z66: =1-Z65 -> 0.4732971274
B67: May | C67: =Input!C77 -> 40.9 | D67: =+$D$63 -> 0.7716561567 | E67: 31.561 | H67: =+$H$63 -> 0.9039584685 | I67: =+$I$63 -> 0.9421868454 | J67: Winter Averages for Oct 2018-June 2021
B68: June | C68: =Input!C78 -> 44.35 | D68: =Input!F73 -> 0.6683658171 | E68: 29.642 | H68: =Input!F80 -> 0.8879039176 | I68: =Input!G80 -> 0.8947592671 | N68: Total on-peak | O68: =+O61+O65 -> 6295270.574 | P68: =+P61+P65 -> 44788.91943 | Q68: 88114.86486 | R68: 283.6273 | S68: 5.4264 | T68: 4187.568169 | U68: 36693.4175 | V68: 77621.1563 | W68: 3409112.262 | X68: 2514425.314 | Y68: 12470503.13 | Z68: =+Y68/(Y68+Y69) -> 0.5176914062
B69: July | C69: =Input!C79 -> 50.8 | D69: =+$D$68 -> 0.6683658171 | E69: 33.953 | H69: =+$H$68 -> 0.8879039176 | I69: =+$I$68 -> 0.8947592671 | N69: Total off-peak | O69: =+O62+O66 -> 6346946.183 | P69: 46806.69078 | Q69: 86750.26359 | R69: 291.3727 | S69: 5.5736 | T69: 3807.259182 | U69: 104887.5825 | V69: 222619.8437 | W69: 2669903.146 | X69: 2136159.936 | Y69: 11618177.85 | Z69: =1-Z68 -> 0.4823085938
B70: August | C70: =Input!C80 -> 47.55 | D70: =+$D$68 -> 0.6683658171 | E70: 31.781 | H70: =+$H$68 -> 0.8879039176 | I70: =+$I$68 -> 0.8947592671
B71: September | C71: =Input!C81 -> 45.45 | D71: =+$D$68 -> 0.6683658171 | E71: 30.377 | H71: =+$H$68 -> 0.8879039176 | I71: =+$I$68 -> 0.8947592671
B72: October | C72: =Input!C82 -> 45.05 | D72: =+$D$63 -> 0.7716561567 | E72: 34.763 | H72: =+$H$63 -> 0.9039584685 | I72: =+$I$63 -> 0.9421868454
B73: November | C73: =Input!C83 -> 46.6 | D73: =+$D$63 -> 0.7716561567 | E73: 35.959 | H73: =+$H$63 -> 0.9039584685 | I73: =+$I$63 -> 0.9421868454
B74: December | C74: =Input!C84 -> 48.9 | D74: =+$D$63 -> 0.7716561567 | E74: 37.734 | H74: =+$H$63 -> 0.9039584685 | I74: =+$I$63 -> 0.9421868454
A77: Table #6 | B77: Losses | C77: =+C7 -> RS | D77: =+D7 -> RHS | E77: RLM | F77: WH | G77: WHS | H77: HS | I77: PSAL | J77: BPL | K77: GLP | L77: LPL-S | P77: Loss Type | Q77: Percentage | R77: Source
B78: from meter to bulk system (includes Delivery & PJM EHV losses) | P78: Delivery Losses | Q78: =Input!C89 -> 0.058327 | R78: Tariff (Result of 2018 Loss Study)
B79: Loss Factors = | C79: =1-((1-$Q$78)*(1-$Q$79)) -> 0.06262102888 | D79: =+$C79 -> 0.06262102888 | E79: =+$C79 -> 0.06262102888 | F79: 0.06262102888 | G79: 0.06262102888 | H79: 0.06262102888 | I79: 0.06262102888 | J79: 0.06262102888 | K79: 0.06262102888 | L79: 0.06262102888 | P79: EHV Losses | Q79: =Input!C90 -> 0.00456 | R79: PJM
B80: Expansion Factor = | C80: =ROUND(1/(1-C79),6) -> 1.066804 | D80: =ROUND(1/(1-D79),6) -> 1.066804 | E80: 1.066804 | F80: 1.066804 | G80: 1.066804 | H80: 1.066804 | I80: 1.066804 | J80: 1.066804 | K80: 1.066804 | L80: 1.066804 | P80: Marginal Loss Deration Factor | Q80: =+Input!C91 -> 0.01168869481 | R80: NERA
B81: 1 / Expansion Factor = | C81: =1/C80 -> 0.9373793124 | D81: =1/D80 -> 0.9373793124 | E81: 0.9373793124 | F81: 0.9373793124 | G81: 0.9373793124 | H81: 0.9373793124 | I81: 0.9373793124 | J81: 0.9373793124 | K81: 0.9373793124 | L81: 0.9373793124 | P81: Marginal Loss Factor | Q81: =ROUND(1-((1-Q80)/(1-Q79)),7) -> 0.0071614
B83: from meter to transmission node (includes Delivery less mean hourly PJM marginal losses)
B84: Loss Factors = | C84: =1-((1-$Q$78)/((1-$Q$80)/(1-$Q$79))) -> 0.05153470753 | D84: =+$C84 -> 0.05153470753 | E84: =+$C84 -> 0.05153470753 | F84: 0.05153470753 | G84: 0.05153470753 | H84: 0.05153470753 | I84: 0.05153470753 | J84: 0.05153470753 | K84: 0.05153470753 | L84: 0.05153470753
B85: Expansion Factor = | C85: =ROUND(1/(1-C84),6) -> 1.054335 | D85: =+$C$85 -> 1.054335 | E85: =+$C$85 -> 1.054335 | F85: 1.054335 | G85: 1.054335 | H85: 1.054335 | I85: 1.054335 | J85: 1.054335 | K85: 1.054335 | L85: 1.054335
B86: 1 / Expansion Factor = | C86: =1/C85 -> 0.9484651463 | D86: =1/D85 -> 0.9484651463 | E86: 0.9484651463 | F86: 0.9484651463 | G86: 0.9484651463 | H86: 0.9484651463 | I86: 0.9484651463 | J86: 0.9484651463 | K86: 0.9484651463 | L86: 0.9484651463
A89: Table #7 | B89: Summary of Average BGS Energy Only Unit Costs @ customer - PJM Time Periods
B90: based on Forwards prices corrected for congestion & all losses - PJM time periods
B91: in $/MWh
C92: =+C7 -> RS | D92: =+D7 -> RHS | E92: RLM | F92: WH | G92: WHS | H92: HS | I92: PSAL | J92: BPL | K92: GLP | L92: LPL-S
B94: Summer - all hrs | C94: =(SUMPRODUCT(C14:C17,C50:C53,$C68:$C71,$H68:$H71)*C80+SUMPRODUCT(O14:O17,C50:C53,$E68:$E71,$I68:$I71)*C80)/SUM(C50:C53) -> 37.75901509 | D94: 37.82052264 | E94: 37.86574931 | F94: 37.2000178 | G94: 37.1528298 | H94: 38.95785944 | I94: 33.05213933 | J94: 33.01582895 | K94: 38.50363482 | L94: 38.04738871
B95: PJM on pk | C95: =(SUMPRODUCT(C14:C17,C50:C53,$C68:$C71,$H68:$H71)*C80)/SUMPRODUCT(C14:C17,C50:C53) -> 44.99002066 | D95: 44.95064176 | E95: 44.86497513 | F95: 44.38153604 | G95: 44.42056133 | H95: 44.70175025 | I95: 44.49147654 | J95: 44.4560452 | K95: 44.75754932 | L95: 44.64781835
B96: PJM off pk | C96: =(SUMPRODUCT(O14:O17,C50:C53,$E68:$E71,$I68:$I71)*C80)/SUMPRODUCT(O14:O17,C50:C53) -> 30.27409157 | D96: 30.23875878 | E96: 30.17957196 | F96: 29.85792509 | G96: 29.88122111 | H96: 30.07796028 | I96: 30.00256712 | J96: 29.97583684 | K96: 30.10762495 | L96: 30.05087203
B98: Winter - all hrs | C98: =(SUMPRODUCT(C9:C13,C45:C49,$C63:$C67,$H63:$H67)*C80+SUMPRODUCT(O9:O13,C45:C49,$E63:$E67,$I63:$I67)*C80+SUMPRODUCT(C18:C20,C54:C56,$C72:$C74,$H72:$H74)*C80+SUMPRODUCT(O18:O20,C54:C56,$E72:$E74,$I72:$I74)*C80)/SUM(C45:C49,C54:C56) -> 44.34150264 | D98: 46.10484757 | E98: 44.15360963 | F98: 43.5605436 | G98: 43.15067505 | H98: 46.24931392 | I98: 41.93324353 | J98: 41.88583725 | K98: 44.09951984 | L98: 43.72700196
B99: PJM on pk | C99: =(SUMPRODUCT(C9:C13,C45:C49,$C63:$C67,$H63:$H67)*C80+SUMPRODUCT(C18:C20,C54:C56,$C72:$C74,$H72:$H74)*C80)/(SUMPRODUCT(C9:C13,C45:C49)+SUMPRODUCT(C18:C20,C54:C56)) -> 49.21603998 | D99: 51.25459728 | E99: 48.9835073 | F99: 48.37045754 | G99: 47.87164805 | H99: 50.96944443 | I99: 49.56139146 | J99: 49.55739 | K99: 48.26630613 | L99: 48.03535084
B100: PJM off pk | C100: =(SUMPRODUCT(O9:O13,C45:C49,$E63:$E67,$I63:$I67)*C80+SUMPRODUCT(O18:O20,C54:C56,$E72:$E74,$I72:$I74)*C80)/(SUMPRODUCT(O9:O13,C45:C49)+SUMPRODUCT(O18:O20,C54:C56)) -> 39.66409897 | D100: 41.3280166 | E100: 39.53553446 | F100: 38.96927239 | G100: 38.60120524 | H100: 41.50311014 | I100: 39.00223116 | J100: 38.95972355 | K100: 38.93075943 | L100: 38.73311591
B102: Annual | C102: =(C94*SUM(C50:C53)+C98*SUM(C45:C49,C54:C56))/C57 -> 41.46644624 | D102: 44.21921457 | E102: 41.40724901 | F102: 41.74641102 | G102: 41.51489907 | H102: 44.70571278 | I102: 39.49657128 | J102: 39.52922476 | K102: 42.04603022 | L102: 41.7495051
B104: System Total | C104: =SUMPRODUCT(C102:L102,C57:L57)/SUM(C57:L57) -> 41.64275344
A107: Table #8 | B107: Summary of Average BGS Energy Only Costs @ customer - PJM Time Periods
B108: based on Forwards prices corrected for congestion & all losses
B109: in $1000
C110: =+C7 -> RS | D110: =+D7 -> RHS | E110: RLM | F110: WH | G110: WHS | H110: HS | I110: PSAL | J110: BPL | K110: GLP | L110: LPL-S
B112: Summer - all hrs | C112: =SUM(C50:C53)*C94/1000 -> 208497.1923 | D112: 788.5009714 | E112: 2892.040982 | F112: 6.100802919 | G112: 0.1114584894 | H112: 65.93637965 | I112: 1283.910352 | J112: 2633.639659 | K112: 85893.18442 | L112: 61606.92112
B113: PJM on pk | C113: =SUMPRODUCT(C50:C53,C14:C17)*C95/1000 -> 126355.8712 | D113: 482.9615933 | E113: 1793.452363 | F113: 3.679522256 | G113: 0.06664861022 | H113: 45.94123145 | I113: 363.7601899 | J113: 744.4964266 | K113: 57221.70985 | L113: 39604.42648
B114: PJM off pk | C114: =SUMPRODUCT(C50:C53,O14:O17)*C96/1000 -> 82141.32109 | D114: 305.5393781 | E114: 1098.588618 | F114: 2.421280663 | G114: 0.04480987917 | H114: 19.9951482 | I114: 920.1501622 | J114: 1889.143233 | K114: 28671.47457 | L114: 22002.49464
B116: Winter - all hrs | C116: =SUM(C45:C49,C54:C56)*C98/1000 -> 315730.6092 | D116: 3261.78497 | E116: 4348.642936 | F116: 17.90338342 | G116: 0.3452054004 | H116: 291.4780757 | I116: 4308.053707 | J116: 9234.65431 | K116: 169705.2811 | L116: 132552.7114
B117: PJM on pk | C117: =(SUMPRODUCT(C45:C49,C9:C13)+SUMPRODUCT(C54:C56,C18:C20))*C99/1000 -> 171603.5104 | D117: 1744.945068 | E117: 2358.086736 | F117: 9.708952098 | G117: 0.1879440903 | H117: 161.0553081 | I117: 1413.365256 | J117: 3016.774295 | K117: 102837.6647 | L117: 78171.99686
B118: PJM off pk | C118: =+(SUMPRODUCT(C45:C49,O9:O13)+SUMPRODUCT(C54:C56,O18:O20))*C100/1000 -> 144127.0988 | D118: 1516.839902 | E118: 1990.5562 | F118: 8.194431321 | G118: 0.1572613101 | H118: 130.4227676 | I118: 2894.68845 | J118: 6217.880015 | K118: 66867.61645 | L118: 54380.71458
B120: Annual | C120: =+C112+C116 -> 524227.8015 | D120: =+D112+D116 -> 4050.285942 | E120: 7240.683918 | F120: 24.00418634 | G120: 0.4566638898 | H120: 357.4144553 | I120: 5591.964059 | J120: 11868.29397 | K120: 255598.4655 | L120: 194159.6326
B122: System Total | C122: =SUM(C120:L120) -> 1003119.003
A125: Table #9 | B125: Summary of Average BGS Energy Only Unit Costs @ customer - PSE&G Time Periods | Q125: MWhs in PSE&G time periods | T125: MWhs in PJM time periods | W125: Difference in MWhs | Z125: Check on total $ recovered
B126: based on Forwards prices corrected for congestion & all losses - PSE&G billing time periods | W126: (PJM - PSE&G) | Z126: PSE&G time periods | AC126: PJM time periods (Table #8)
B127: in $/MWh
C128: =+C7 -> RS | D128: =+D7 -> RHS | E128: RLM | F128: WH | G128: WHS | H128: HS | I128: PSAL | J128: BPL | K128: GLP | L128: LPL-S | Q128: =+E128 -> RLM | R128: =+L128 -> LPL-S | T128: =+E128 -> RLM | U128: =+L128 -> LPL-S | W128: =+E128 -> RLM | X128: =+L128 -> LPL-S | Z128: =+E128 -> RLM | AA128: =+L128 -> LPL-S | AC128: =+E128 -> RLM | AD128: =+L128 -> LPL-S
B130: Summer - all hrs | C130: =+C112/SUM(C50:C53)*1000 -> 37.75901509 | D130: 37.82052264 | E130: 37.86574931 | F130: 37.2000178 | G130: 37.1528298 | H130: 38.95785944 | I130: 33.05213933 | J130: 33.01582895 | K130: 38.50363482 | L130: 38.04738871
B131: PSE&G On pk | E131: =+(E113*1000-W131*AVERAGE(E$95,E$96))/Q131 -> 45.5713207 | L131: =+(L113*1000-X131*AVERAGE(L$95,L$96))/R131 -> 45.43040916 | Q131: =SUMPRODUCT(E50:E53,E32:E35) -> 36466.47803 | R131: =SUMPRODUCT(L50:L53,L32:L35) -> 801137.3074 | T131: =SUMPRODUCT(E50:E53,E14:E17) -> 39974.44239 | U131: =SUMPRODUCT(L50:L53,L14:L17) -> 887040.5753 | W131: =+T131-Q131 -> 3507.964358 | X131: =+U131-R131 -> 85903.26797 | Z131: =+E131*Q131/1000 -> 1661.825565 | AA131: =+L131*R131/1000 -> 36395.99567
B132: PSE&G Off pk | E132: =+(E114*1000-W132*AVERAGE(E$95,E$96))/Q132 -> 30.82497745 | L132: =+(L114*1000-X132*AVERAGE(L$95,L$96))/R132 -> 30.81725685 | Q132: =SUMPRODUCT(E50:E53,Q32:Q35) -> 39909.69396 | R132: =SUMPRODUCT(L50:L53,X32:X35) -> 818078.1819 | T132: =SUMPRODUCT(E50:E53,Q14:Q17) -> 36401.72961 | U132: =SUMPRODUCT(L50:L53,X14:X17) -> 732174.914 | W132: =+T132-Q132 -> -3507.964358 | X132: =+U132-R132 -> -85903.26797 | Z132: =+E132*Q132/1000 -> 1230.215416 | AA132: =+L132*R132/1000 -> 25210.92545
Z133: =+Z132+Z131 -> 2892.040982 | AA133: =+AA132+AA131 -> 61606.92112 | AC133: =+E112 -> 2892.040982 | AD133: =+L112 -> 61606.92112
B134: Winter - all hrs | C134: =+C116/SUM(C45:C49,C54:C56)*1000 -> 44.34150264 | D134: 46.10484757 | E134: 44.15360963 | F134: 43.5605436 | G134: 43.15067505 | H134: 46.24931392 | I134: 41.93324353 | J134: 41.88583725 | K134: 44.09951984 | L134: 43.72700196
B135: PSE&G On pk | E135: =+(E117*1000-W135*AVERAGE(E$99,E$100))/Q135 -> 49.65327038 | L135: =+(L117*1000-X135*AVERAGE(L$99,L$100))/R135 -> 48.57745782 | Q135: =SUMPRODUCT(E45:E49,E27:E31)+SUMPRODUCT(E54:E56,E36:E38) -> 42162.63703 | R135: =SUMPRODUCT(L45:L49,L27:L31)+SUMPRODUCT(L54:L56,L36:L38) -> 1457506.345 | T135: =SUMPRODUCT(E45:E49,E9:E13)+SUMPRODUCT(E54:E56,E18:E20) -> 48140.42248 | U135: =SUMPRODUCT(L45:L49,L9:L13)+SUMPRODUCT(L54:L56,L18:L20) -> 1627384.738 | W135: =+T135-Q135 -> 5977.785443 | X135: =+U135-R135 -> 169878.3934 | Z135: =+E135*Q135/1000 -> 2093.512816 | AA135: =+L135*R135/1000 -> 70801.95299
B136: PSE&G Off pk | E136: =+(E118*1000-W136*AVERAGE(E$99,E$100))/Q136 -> 40.0368805 | L136: =+(L118*1000-X136*AVERAGE(L$99,L$100))/R136 -> 39.23514446 | Q136: =SUMPRODUCT(E45:E49,Q27:Q31)+SUMPRODUCT(E54:E56,Q36:Q38) -> 56326.31943 | R136: =SUMPRODUCT(L45:L49,X27:X31)+SUMPRODUCT(L54:L56,X36:X38) -> 1573863.415 | T136: =SUMPRODUCT(E45:E49,Q9:Q13)+SUMPRODUCT(E54:E56,Q18:Q20) -> 50348.53398 | U136: =SUMPRODUCT(L45:L49,X9:X13)+SUMPRODUCT(L54:L56,X18:X20) -> 1403985.022 | W136: =+T136-Q136 -> -5977.785443 | X136: =+U136-R136 -> -169878.3934 | Z136: =+E136*Q136/1000 -> 2255.13012 | AA136: =+L136*R136/1000 -> 61750.75845
Z137: =+Z136+Z135 -> 4348.642936 | AA137: =+AA136+AA135 -> 132552.7114 | AC137: =+E116 -> 4348.642936 | AD137: =+L116 -> 132552.7114
B138: Annual Average | C138: =(C130*SUM(C50:C53)+C134*SUM(C45:C49,C54:C56))/C57 -> 41.46644624 | D138: 44.21921457 | E138: 41.40724901 | F138: 41.74641102 | G138: 41.51489907 | H138: 44.70571278 | I138: 39.49657128 | J138: 39.52922476 | K138: 42.04603022 | L138: 41.7495051
B139: System Average | C139: =+C122/SUM(C57:L57)*1000 -> 41.64275344
A142: Table #10 | B142: Generation & Transmission Obligations and Costs and Other Adjustments | L142: Adj for PLS
B143: =Input!B97 -> Obligations - Peak Load shares eff 6/1/22, scaling factors eff 1/1/22, Transmission Loads eff 1/1/22; costs are market estimates | L143: > 500 kW
B144: in MW | C144: =+C7 -> RS | D144: =+D7 -> RHS | E144: RLM | F144: WH | G144: WHS | H144: HS | I144: PSAL | J144: BPL | K144: GLP | L144: LPL-S | AD144: RS | AE144: RHS | AF144: RLM | AG144: WH | AH144: WHS | AI144: HS | AJ144: PSAL | AK144: BPL | AL144: GLP | AM144: LPL-S
R145: NITS Rate Weighted Average Calculation | AC145: Generation Peak Load Share | AD145: =Input!C101 -> 4302.469352 | AE145: =Input!D101 -> 17.81945849 | AF145: =Input!E101 -> 57.39088781 | AG145: =Input!F101 -> 0 | AH145: =Input!G101 -> 0 | AI145: =Input!H101 -> 2.76347962 | AJ145: =Input!I101 -> 0 | AK145: =Input!J101 -> 0 | AL145: =Input!K101 -> 1567.73861 | AM145: =Input!L101 -> 1254.89234
T146: Tranches | U146: NITS Rate | AC146: Tranmsission Obligation | AD146: =Input!C102 -> 4775.071423 | AE146: =Input!D102 -> 20.01730202 | AF146: =Input!E102 -> 64.53252811 | AG146: =Input!F102 -> 0 | AH146: =Input!G102 -> 0 | AI146: =Input!H102 -> 3.022432883 | AJ146: =Input!I102 -> 0 | AK146: =Input!J102 -> 0 | AL146: =Input!K102 -> 1685.27096 | AM146: =Input!L102 -> 1318.840483
B147: Gen Obl - MW | C147: =ROUND(AD145*$AD$148*$AD$149,1) -> 5023.7 | D147: =ROUND(AE145*$AD$148*$AD$149,1) -> 20.8 | E147: 67 | F147: 0 | G147: 0 | H147: 3.2 | I147: 0 | J147: 0 | K147: 1830.5 | L147: =ROUND(AM145*$AD$148*$AD$149*(1-AE45),1) -> 964.5 | R147: =Input!C108 -> 2019 | S147: NITS Rate | T147: =Input!D108 -> 28 | U147: =Input!E108 -> 104709.15 | V147: =U147/$T$150*T147 -> 34492.42588
R148: =Input!C109 -> 2020 | S148: NITS Rate | T148: =Input!D109 -> 28 | U148: =Input!E109 -> 138497.0843 | V148: =U148/$T$150*T148 -> 45622.56895 | AC148: Final Zonal RPM Scaling Factor | AD148: =Input!C104 -> 1.074076859
B149: Trans Obl - MW | C149: =ROUND(AD146,1) -> 4775.1 | D149: =ROUND(AE146,1) -> 20 | E149: 64.5 | F149: 0 | G149: 0 | H149: 3 | I149: 0 | J149: 0 | K149: 1685.3 | L149: =ROUND(AM146*(1-AF45),1) -> 868.2 | R149: =Input!C110 -> 2021 | S149: NITS Rate | T149: =Input!D110 -> 29 | U149: =Input!E110 -> 144787.9774 | V149: =U149/$T$150*T149 -> 49398.25113 | X149: =+Input!B105 -> PJM January 1, 2022 (through May 31, 2022) Forecast Pool Requirement | AD149: =Input!C105 -> 1.0871
T150: =SUM(T147:T149) -> 85 | V150: =ROUND(SUM(V147:V149),2) -> 129513.25
B151: # of Months and Days used in this analysis
D152: # of summer days = | E152: 122 | G152: # of summer months = | H152: 4
D153: # of winter days = | E153: 243 | G153: # of winter months = | H153: 8
G154: total # months = | H154: =+H152+H153 -> 12
B155: Transmission Cost | C155: year round = | D155: 0 | E155: per MW-yr
D157: Base Capacity
B158: Generation Capacity cost | C158: summer = | D158: =Input!E113 -> 104.84 | E158: $/MW/day
C159: winter = | D159: =Input!E114 -> 104.84 | E159: $/MW/day | Q159: Resulting average generation capacity cost =
P160: annual >> | Q160: =(D158*E152+D159*E153)/1000 -> 38.2666 | R160: per kW/yr
C161: =+C7 -> RS | D161: =+D7 -> RHS
B162: % usage in Summer Blocks
B163: Block 1 (0-600 kWh/m) | C163: =ROUND(Q165/Q167,3) -> 0.646 | D163: =ROUND(R165/R167,3) -> 0.661 | F163: (based on W/N actuals used in settlement and final rate design of 2018 Rate Case, rounded to .1%) | P163: Blocking Percentages based on Annualized W/N Usage Used in 2018 Electric Rate Case Settlement
B164: Block 2 (>600 kWh/m) | C164: =1-C163 -> 0.354 | D164: =1-D163 -> 0.339 | Q164: RS | R164: RHS
P165: June - September (0-600) | Q165: 3528124 | R165: 19973
B166: Required summer inversion = | C166: =Input!C119 -> 0.8652 | D166: =Input!D119 -> 1.1569 | E166: ¢/kWh | F166: (same as 2003/2004 BGS blocking inversion) | P166: June - September (600+) | Q166: 1931618 | R166: 10227
P167: Total Summer Usage | Q167: =SUM(Q165:Q166) -> 5459742 | R167: =SUM(R165:R166) -> 30200
A168: Table #11 | B168: Ancillary Services & Renewable Power Cost
B169: Ancillary Services | D169: =+Input!D123 -> 2
B170: Renewable Power Cost | D170: =+Input!D124 -> 16.09
B171: Total AncillaryServices & Renewable Power Costs | D171: =SUM(D169:D170) -> 18.09 | E171: per MWh @ bulk system
A174: Table #12 | B174: Summary of Obligation Costs Expressed as $/MWh @ customer (for non-demand rates only)
C176: =+C7 -> RS | D176: RHS | E176: RLM | F176: WH | G176: WHS | H176: HS | I176: PSAL | J176: BPL
B178: Transmission Obl - all months | C178: =(+$D$155*C149*$H$154/12)/C57 -> 0 | D178: =(+$D$155*D149*$H$154/12)/D57 -> 0 | E178: =(+$D$155*E149*$H$154/12)/SUMPRODUCT(E27:E38,E45:E56) -> 0 | F178: =(+$D$155*F149*$H$154/12)/F57 -> 0 | G178: =(+$D$155*G149*$H$154/12)/G57 -> 0 | H178: =(+$D$155*H149*$H$154/12)/H57 -> 0 | I178: =(+$D$155*I149*$H$154/12)/I57 -> 0 | J178: =(+$D$155*J149*$H$154/12)/J57 -> 0
B180: Generation Obl -
B181: per annual MWh | C181: =((+$Q$160*C147*1000)/C57) -> 15.2061875 | D181: =((+$Q$160*D147*1000)/D57) -> 8.689775396 | E181: =(+$Q$160*E147*1000)/SUMPRODUCT(E45:E56,E27:E38) -> 32.60703364 | F181: =((+$Q$160*F147*1000)/F57) -> 0 | G181: =((+$Q$160*G147*1000)/G57) -> 0 | H181: =((+$Q$160*H147*1000)/H57) -> 15.31654339 | I181: =((+$Q$160*I147*1000)/I57) -> 0 | J181: =((+$Q$160*J147*1000)/J57) -> 0
B182: recovery per summer MWh | C182: =(C147*$D$158*$E$152)/SUM(C50:C53) -> 11.63673076 | D182: =(D147*$D$158*$E$152)/SUM(D50:D53) -> 12.76072858 | E182: =(E147*$D$158*$E$152)/SUMPRODUCT(E50:E53,E32:E35) -> 23.49999798 | F182: =(F147*$D$158*$E$152)/SUM(F50:F53) -> 0 | G182: =(G147*$D$158*$E$152)/SUM(G50:G53) -> 0 | H182: =(H147*$D$158*$E$152)/SUM(H50:H53) -> 24.18281257 | I182: =(I147*$D$158*$E$152)/SUM(I50:I53) -> 0 | J182: =(J147*$D$158*$E$152)/SUM(J50:J53) -> 0
B183: recovery per winter MWh | C183: =(C147*$D$159*$E$153)/SUM(C45:C49,C54:C56) -> 17.97424683 | D183: =(D147*$D$159*$E$153)/SUM(D45:D49,D54:D56) -> 7.490104624 | E183: =(E147*$D$159*$E$153)/(SUMPRODUCT(E45:E49,E27:E31)+SUMPRODUCT(E54:E56,E36:E38)) -> 40.48371165 | F183: =(F147*$D$159*$E$153)/SUM(F45:F49,F54:F56) -> 0 | G183: =(G147*$D$159*$E$153)/SUM(G45:G49,G54:G56) -> 0 | H183: =(H147*$D$159*$E$153)/SUM(H45:H49,H54:H56) -> 12.93548347 | I183: =(I147*$D$159*$E$153)/SUM(I45:I49,I54:I56) -> 0 | J183: =(J147*$D$159*$E$153)/SUM(J45:J49,J54:J56) -> 0
E184: For RLM, per
E185: on-peak kWh only
A187: Table #13 | B187: Summary of BGS Unit Costs @ customer
B189: NON-DEMAND RATES
B190: includes energy, Generation obligations, Ancillary Services and Renewable Power Costs- adjusted to billing time periods
B191: in $/MWh
C192: =+C7 -> RS | D192: RHS | E192: RLM | F192: WH | G192: WHS | H192: HS | I192: PSAL | J192: BPL
B194: Summer - all hrs | C194: =+C130+($D$171*C80)+C$178+C181 -> 72.26368695 | D194: =+D130+($D$171*D80)+D$178+D181 -> 65.8087824 | F194: =+F130+($D$171*F80)+F$178+F181 -> 56.49850216 | G194: =+G130+($D$171*G80)+G$178+G181 -> 56.45131416 | H194: =+H130+($D$171*H80)+H$178+H181 -> 73.57288719 | I194: =+I130+($D$171*I80)+I$178+I181 -> 52.35062369 | J194: =+J130+($D$171*J80)+J$178+J181 -> 52.31431331
B195: PSE&G On pk | E195: =+E131+($D$171*E80)+E$178+E181 -> 97.4768387
B196: PSE&G Off pk | E196: =+E132+($D$171*E80) -> 50.12346181
B197: Block 1 (0-600 kWh/m) | C197: =(C194*SUM(C50:C53)-C166*10*C164*SUM(C50:C53))/SUM(C50:C53) -> 69.20087895 | D197: =(D194*SUM(D50:D53)-D166*10*D164*SUM(D50:D53))/SUM(D50:D53) -> 61.8868914
B198: Block 2 (>600 kWh/m) | C198: =+C197+C166*10 -> 77.85287895 | D198: =+D197+D166*10 -> 73.4558914
B200: Winter - all hrs | C200: =+C134+($D$171*C80)+C$178+C181 -> 78.8461745 | D200: =+D134+($D$171*D80)+D$178+D181 -> 74.09310733 | F200: =+F134+($D$171*F80)+F$178+F181 -> 62.85902796 | G200: =+G134+($D$171*G80)+G$178+G181 -> 62.44915941 | H200: =+H134+($D$171*H80)+H$178+H181 -> 80.86434167 | I200: =+I134+($D$171*I80)+I$178+I181 -> 61.23172789 | J200: =+J134+($D$171*J80)+J$178+J181 -> 61.18432161
B201: PSE&G On pk | E201: =+E135+($D$171*E80)+E$178+E181 -> 101.5587884
B202: PSE&G Off pk | E202: =+E136+($D$171*E80) -> 59.33536486
B204: Annual -all hrs | C204: =+C138+($D$171*C80)+C$178+C181 -> 75.9711181 | D204: =+D138+($D$171*D80)+D$178+D181 -> 72.20747432 | E204: =((E195*SUMPRODUCT(E32:E35,E50:E53)+E196*SUMPRODUCT(Q32:Q35,E50:E53))+(E201*(SUMPRODUCT(E27:E31,E45:E49)+SUMPRODUCT(E36:E38,E54:E56))+E202*(SUMPRODUCT(Q27:Q31,E45:E49)+SUMPRODUCT(Q36:Q38,E54:E56))))/E57 -> 75.3676744 | F204: =+F138+($D$171*F80)+F$178+F181 -> 61.04489538 | G204: =+G138+($D$171*G80)+G$178+G181 -> 60.81338343 | H204: =+H138+($D$171*H80)+H$178+H181 -> 79.32074053 | I204: =+I138+($D$171*I80)+I$178+I181 -> 58.79505564 | J204: =+J138+($D$171*J80)+J$178+J181 -> 58.82770912
B206: DEMAND RATES
B207: includes energy and Ancillary Services, G&T obligations charged separately - adjusted to billing time periods
B208: in $/MWh
C209: =+K7 -> GLP | D209: =+L7 -> LPL-S | H209: PLUS: | I209: =+C209 -> GLP | J209: =+D209 -> LPL-S
B211: Summer - all hrs | C211: =+K130+($D$171*K80) -> 57.80211918 | D211: =+L130+($D$171*L$80) -> 57.34587307 | H211: Gen Cost
B212: PSE&G On pk | D212: =+L131+($D$171*L$80) -> 64.72889352 | H212: summer | I212: =+$D158*$E152/$H152/1000 -> 3.19762 | J212: =+$D158*$E152/$H152/1000 -> 3.19762 | K212: per kW of G obl /month
B213: PSE&G Off pk | D213: =+L132+($D$171*L$80) -> 50.11574121 | H213: winter | I213: =+$D159*$E153/$H153/1000 -> 3.184515 | J213: =+$D159*$E153/$H153/1000 -> 3.184515 | K213: per kW of G obl /month
H214: annual | I214: =($D$158*$E$152+$D$159*$E$153)/$H$154/1000 -> 3.188883333 | J214: =($D$158*$E$152+$D$159*$E$153)/$H$154/1000 -> 3.188883333 | K214: per kW of G obl /month
B215: Winter - all hrs | C215: =+K134+($D$171*K80) -> 63.3980042 | D215: =+L134+($D$171*L$80) -> 63.02548632
B216: PSE&G On pk | D216: =+L135+($D$171*L$80) -> 67.87594218 | H216: Trans cost
B217: PSE&G Off pk | D217: =+L136+($D$171*L$80) -> 58.53362882 | H217: all months | I217: =+$D155/1000/12 -> 0 | J217: =+$D155/1000/12 -> 0 | K217: per kW of T obl /month
B219: Annual - all hrs per MWh only | C219: =+K138+($D$171*K80) -> 61.34451458 | D219: =+L138+($D$171*L$80) -> 61.04798946
B221: Including Generation Obligation $
B222: Summer - all hrs | C222: =(C211*W49+((I214*$H152)*K147*1000)+(I217*$H152*K149*1000))/W49 -> 68.26885784 | D222: =(D211*X49+((J214*$H152)*L147*1000)+(J217*$H152*L149*1000))/X49 -> 64.9438191 | F222: Note: Obligation $ included in On pk costs
B223: PSE&G On pk | D223: =(D212*X50+((J214*$H152)*L147*1000)+(J217*$H152*L149*1000))/X50 -> 80.08545199
B224: PSE&G Off pk | D224: =+D213 -> 50.11574121
B226: Winter - all hrs | C226: =(C215*W45+((I214*$H153)*K147*1000)+(I217*$H153*K149*1000))/W45 -> 75.53292243 | D226: =(D215*X45+((J214*$H153)*L147*1000)+(J217*$H153*L149*1000))/X45 -> 71.14241885
B227: PSE&G On pk | D227: =(D216*X46+((J214*$H153)*L147*1000)+(J217*$H153*L149*1000))/X46 -> 84.75780612
B228: PSE&G Off pk | D228: =+D217 -> 58.53362882
B230: Annual - including Gen Obl $ | C230: =(C219*K57+((I214*$H152+I214*$H153)*K147*1000)+(I217*$H154*K149*1000))/K57 -> 72.86727058 | D230: =(D219*L57+((J214*$H152+J214*$H153)*L147*1000)+(J217*$H154*L149*1000))/L57 -> 68.98422409
B232: ALL RATES
B233: Grand Total Cost in $1000 = | C233: =(+SUMPRODUCT(C204:J204,C57:J57)+SUMPRODUCT(C230:D230,K57:L57))/1000 -> 1770671.362
C234: All-In Average cost @ customer = | D234: =+C233/SUM(C57:L57)*1000 -> 73.5063644 | E234: per MWh at customer (per customer metered MWh)
C235: All-In Average costs @ transmission nodes = | D235: =+C233/SUMPRODUCT(C57:L57,C85:L85)*1000 -> 69.71822466 | E235: per MWh at transmission nodes (per metered MWh at transmission node)
A238: Table #14 | B238: Ratio of BGS Unit Costs @ customer to All-In Average Cost @ transmission nodes - rounded to 3 decimal places, unit obligation $ rounded to 4 decimal places
B240: NON-DEMAND RATES
B241: includes energy, Generation obligations, Ancillary Services and Renewable Power Costs- adjusted to billing time periods
C243: =+C7 -> RS | D243: RHS | E243: RLM | F243: WH | G243: WHS | H243: HS | I243: PSAL | J243: BPL
B245: Summer - all hrs | F245: =ROUND(+F194/$D$235,3) -> 0.81 | G245: =ROUND(+G194/$D$235,3) -> 0.81 | H245: =ROUND(+H194/$D$235,3) -> 1.055 | I245: =ROUND(+I194/$D$235,3) -> 0.751 | J245: =ROUND(+J194/$D$235,3) -> 0.75
B246: PSE&G On pk | E246: =ROUND(+E195/$D$235,3) -> 1.398 | J246: Use weighted average
B247: PSE&G Off pk | E247: =ROUND(+E196/$D$235,3) -> 0.719 | J247: for all streetlighting = | K247: =ROUND((I245*U49+J245*V49)/(U49+V49),3) -> 0.75
B249: All usage Multiplier | C249: =ROUND(+C194/$D$235,3) -> 1.037 | D249: =ROUND(+D194/$D$235,3) -> 0.944
B250: Constant (in $/MWh) | C250: =ROUND(+C197-C194,3) -> -3.063 | D250: =ROUND(D197-D194,3) -> -3.922 | E250: for Block 1 (0-600 kWh/m) usage
... 76 more rows

Sheet Att 3
B1: ="Calculation of June "&(Input!D2)&" to May "&(Input!D2+1)&" BGS-RSCP Rates" -> Calculation of June 2022 to May 2023 BGS-RSCP Rates
B2: Illustrative Only
B3: NJ Sales & Use Tax (SUT) excluded
A5: Table A | B5: Auction Results
A6: line # | B6: Specific BGS-RSCP Auction >> | C6: =Input!C135 -> remaining portion of 36 month bid - 2020 auction | D6: =Input!D135 -> remaining portion of 36 month bid - 2021 auction | E6: =Input!E135 -> 36 month bid - 2022 auction | G6: Notes:
C7: =LEFT(RIGHT(C6,12),4) -> 2020 | D7: =LEFT(RIGHT(D6,12),4) -> 2021 | E7: 2022
A8: 1 | B8: Winning Bid - in $/MWh | C8: =Input!C136 -> 102.16 | D8: =Input!D136 -> 64.8 | E8: =D11 -> 57.48 | G8: 2022 Illustrative (Excluding transmission)
A9: 1A | B9: Capacity Proxy Price True-Up - in $/MWh | C9: ='Att 4-1'!C21 -> -7.32 | D9: =C9 -> -7.32 | E9: 0 | G9: entered after 2022 Auction
A10: 1B | B10: Transmission Price | C10: 37.77 | D10: 0 | E10: 0 | G10: asssumed transmission price in bids
A11: 1C | B11: Total - in $/MWh | C11: =C8+C9-C10 -> 57.07 | D11: =D8+D9-D10 -> 57.48 | E11: =E8+E9-E10 -> 57.48 | G11: = line 1 + line 1A - line 1B
B13: (includes all payments, including impact of PJM marginal losses)
A14: 2 | B14: # of Tranches for Bid | C14: =Input!C137 -> 28 | D14: =Input!D137 -> 29 | E14: =Input!E137 -> 28 | G14: from then current Bid
A15: 3 | B15: Total # of Tranches | C15: 85 | D15: 85 | E15: 85 | G15: from then current Bid
B16: Payment Factors
A17: 4 | B17: Summer | C17: =Input!C140 -> 1 | D17: =Input!D140 -> 1 | E17: =IF(LEFT(Input!$B$2,6)="rebase",Input!E140,'Att 2'!L316) -> 1
A18: 5 | B18: Winter | C18: =Input!C141 -> 1 | D18: =Input!D141 -> 1 | E18: =IF(LEFT(Input!$B$2,6)="rebase",Input!E141,'Att 2'!L317) -> 1
B20: Applicable Customer Usage @ transmission nodes - in MWh
A21: 6 | B21: Summer MWh | C21: =+'Att 2'!C352 -> 10110525.06 | G21: from Table #17 of the current Bid Factor Spreadsheet
A22: 7 | B22: Winter MWh | C22: =+'Att 2'!C353 -> 15287014.4
B24: Total Payment to Suppliers - in $1000
A25: 8 | B25: Summer | C25: =(+C$11*C$14/C$15*C17*$C21/1000) -> 190073.1132 | D25: 198275.7227 | E25: 191438.6288 | G25: = ((1C * (2)/(3) * (4) * (6)) /1000
A26: 9 | B26: Winter | C26: 287388.6769 | D26: 299790.9418 | E26: 289453.3231 | G26: = ((1C * (2)/(3) * (5) * (7)) /1000
A27: 10 | B27: Total | C27: =+C26+C25 -> 477461.7901 | D27: =+D26+D25 -> 498066.6644 | E27: =+E26+E25 -> 480891.9519 | G27: Note: $ reflect total payment
B29: Average Payment to Suppliers - in $/MWh
A30: 11 | B30: Summer | C30: =ROUND(+SUM(C25:E25)/C21*1000,3) -> 57.345 | G30: = sum(line 8) / (6) - rounded to 3 decimal places
A31: 12 | B31: Winter | C31: =ROUND(+SUM(C26:E26)/C22*1000,3) -> 57.345 | G31: = sum(line 9) / (7) - rounded to 3 decimal places
A33: 13 | B33: Total weighted average | C33: =ROUND(+SUM(C27:E27)/(C21+C22)*1000,3) -> 57.345 | D33: <<< used in calculation of | G33: = sum(line 10) / [ (6) + (7)]
D34: Customer Rates | G34: rounded to 3 decimal places
B36: Reconciliation of amounts - in $1000
A37: 14 | B37: Weighted Average * Total MWh = | C37: =(C33*(C22+C21))/1000 -> 1456421.9 | G37: = (13) * [(6)+(7)] / 1000
A38: 15 | B38: Total Payment to Suppliers = | C38: =SUM(C27:E27) -> 1456420.406 | G38: = sum (line 10)
A39: 16 | B39: Difference = | C39: =+C37-C38 -> 1.49397291 | G39: = line (14) - line (15)
A42: Table B | B42: Ratio of BGS Unit Costs @ customer to All-In Average Cost @ transmission nodes | G42: from Table #14 of the bid factor spreadsheet ---
G43: rounded to 3 decimal places, unit obligation $ rounded to 4 decimal places
B44: NON-DEMAND RATES
B45: includes energy, G&T obligations, and Ancillary Services - adjusted to billing time periods
C47: =+'Att 2'!C243 -> RS | D47: =+'Att 2'!D243 -> RHS | E47: =+'Att 2'!E243 -> RLM | F47: =+'Att 2'!F243 -> WH | G47: =+'Att 2'!G243 -> WHS | H47: =+'Att 2'!H243 -> HS | I47: =+'Att 2'!I243 -> PSAL | J47: =+'Att 2'!J243 -> BPL
B49: Summer - all hrs | F49: =+'Att 2'!F245 -> 0.81 | G49: =+'Att 2'!G245 -> 0.81 | H49: =+'Att 2'!H245 -> 1.055 | I49: =+'Att 2'!I245 -> 0.751 | J49: =+'Att 2'!J245 -> 0.75
B50: PSE&G On pk | E50: =+'Att 2'!E246 -> 1.398 | J50: Use weighted average
B51: PSE&G Off pk | E51: =+'Att 2'!E247 -> 0.719 | J51: for all streetlighting = | K51: =+'Att 2'!K247 -> 0.75
B53: All usage Multiplier | C53: =+'Att 2'!C249 -> 1.037 | D53: =+'Att 2'!D249 -> 0.944
B54: Constant (in $/MWh) | C54: =+'Att 2'!C250 -> -3.063 | D54: =+'Att 2'!D250 -> -3.922 | E54: for Block 1 (0-600 kWh/m) usage
B55: Constant (in $/MWh) | C55: =+'Att 2'!C251 -> 5.589 | D55: =+'Att 2'!D251 -> 7.647 | E55: for Block 2 (>600 kWh/m) usage
B59: Winter - all hrs | C59: =+'Att 2'!C255 -> 1.131 | D59: =+'Att 2'!D255 -> 1.063 | F59: =+'Att 2'!F255 -> 0.902 | G59: =+'Att 2'!G255 -> 0.896 | H59: =+'Att 2'!H255 -> 1.16 | I59: =+'Att 2'!I255 -> 0.878 | J59: =+'Att 2'!J255 -> 0.878
B60: PSE&G On pk | E60: =+'Att 2'!E256 -> 1.457 | J60: Use weighted average
B61: PSE&G Off pk | E61: =+'Att 2'!E257 -> 0.851 | J61: for all streetlighting = | K61: =+'Att 2'!K257 -> 0.878
B63: Annual - all hrs | C63: =+'Att 2'!C259 -> 1.09 | D63: =+'Att 2'!D259 -> 1.036 | E63: =+'Att 2'!E259 -> 1.081 | F63: =+'Att 2'!F259 -> 0.876 | G63: =+'Att 2'!G259 -> 0.872 | H63: =+'Att 2'!H259 -> 1.138 | I63: =+'Att 2'!I259 -> 0.843 | J63: =+'Att 2'!J259 -> 0.844
B66: DEMAND RATES | C66: =C33*C71+D71 -> 45.673755
B67: includes energy and Ancillary Services, G&T obligations charged separately - adjusted to billing time periods
C69: =+'Att 2'!C265 -> GLP | D69: =+'Att 2'!D265 -> GLP | E69: =+'Att 2'!E265 -> LPL-S | F69: =+'Att 2'!F265 -> LPL-S | H69: PLUS: | I69: =+C69 -> GLP | J69: =+E69 -> LPL-S
C70: Multiplier | D70: Constant (in $/MWh) | E70: Multiplier | F70: Constant (in $/MWh)
B71: Summer - all hrs | C71: =+'Att 2'!C267 -> 0.979 | D71: =+'Att 2'!D267 -> -10.467 | H71: Gen Cost
B72: PSE&G On pk | E72: =+'Att 2'!E268 -> 1.149 | F72: =+'Att 2'!F268 -> -15.357 | H72: summer | I72: =+'Att 2'!I$270 -> 3.1889 | J72: =+'Att 2'!J$270 -> 3.1889 | K72: per kW of G obl /month
B73: PSE&G Off pk | E73: =+'Att 2'!E269 -> 0.719 | F73: =+'Att 2'!F269 -> 0 | H73: winter | I73: =+'Att 2'!I$270 -> 3.1889 | J73: =+'Att 2'!J$270 -> 3.1889 | K73: per kW of G obl /month
B75: Winter - all hrs | C75: =+'Att 2'!C271 -> 1.083 | D75: =+'Att 2'!D271 -> -12.135 | H75: Trans cost
B76: PSE&G On pk | E76: =+'Att 2'!E272 -> 1.216 | F76: =+'Att 2'!F272 -> -16.882 | H76: all months | I76: =+'Att 2'!I273 -> 0 | J76: =+'Att 2'!J273 -> 0 | K76: per kW of T obl /month
B77: PSE&G Off pk | E77: =+'Att 2'!E273 -> 0.84 | F77: =+'Att 2'!F273 -> 0
B79: Annual - including T&G Obl $ | C79: =+'Att 2'!C275 -> 1.045 | E79: =+'Att 2'!E275 -> 0.989
A82: Table C | B82: Preliminary Resulting BGS Rates (in cents per kWh) - equal to bid factors times weighted average bid price
B83: rounded to 4 decimal places
B85: NON-DEMAND RATES -----------------------------------------------------------------------------------------------------------------------------------------------------------------------
B86: includes energy, G&T obligations, and Ancillary Services - adjusted to billing time periods
C88: =+C47 -> RS | D88: =+D47 -> RHS | E88: RLM | F88: WH | G88: WHS | H88: HS | I88: PSAL | J88: BPL
B90: Summer - all hrs | F90: =ROUND(($C$33*F49)/10,4) -> 4.6449 | G90: =ROUND(($C$33*G49)/10,4) -> 4.6449 | H90: =ROUND(($C$33*H49)/10,4) -> 6.0499 | I90: =ROUND(($C$33*K51)/10,4) -> 4.3009 | J90: =+I90 -> 4.3009
B91: PSE&G On pk | E91: =ROUND(($C$33*E50)/10,4) -> 8.0168
B92: PSE&G Off pk | E92: =ROUND(($C$33*E51/10),4) -> 4.1231
B94: for Block 1 (0-600 kWh/m) usage | C94: =ROUND((+$C$33*C53+C54)/10,4) -> 5.6404 | D94: =ROUND((+$C$33*D53+D54)/10,4) -> 5.0212
B95: for Block 2 (>600 kWh/m) usage | C95: =ROUND((+$C$33*C53+C55)/10,4) -> 6.5056 | D95: =ROUND((+$C$33*D53+D55)/10,4) -> 6.1781
B97: Winter - all hrs | C97: =ROUND(($C$33*C59)/10,4) -> 6.4857 | D97: =ROUND(($C$33*D59)/10,4) -> 6.0958 | F97: =ROUND(($C$33*F59)/10,4) -> 5.1725 | G97: =ROUND(($C$33*G59)/10,4) -> 5.1381 | H97: =ROUND(($C$33*H59)/10,4) -> 6.652 | I97: =ROUND(($C$33*K61)/10,4) -> 5.0349 | J97: =+I97 -> 5.0349
B98: PSE&G On pk | E98: =ROUND(($C$33*E60)/10,4) -> 8.3552
B99: PSE&G Off pk | E99: =ROUND(($C$33*E61)/10,4) -> 4.8801
B103: DEMAND RATES --------------------------------------------------------------------------------------------------------------------------------------------------------------------------------
B104: includes energy and Ancillary Services, G&T obligations charged separately - adjusted to billing time periods
C106: =+C69 -> GLP | E106: =+E69 -> LPL-S | H106: PLUS: | I106: =+C106 -> GLP | J106: =+E106 -> LPL-S
B108: Summer - all hrs | C108: =ROUND(($C$33*C71+D71)/10,4) -> 4.5674 | H108: Gen Cost
B109: PSE&G On pk | E109: =ROUND(($C$33*E72+F72)/10,4) -> 5.0532 | H109: summer | I109: =+I72 -> 3.1889 | J109: =+J72 -> 3.1889 | K109: per kW of G obl /month
B110: PSE&G Off pk | E110: =ROUND(($C$33*E73+F73)/10,4) -> 4.1231 | H110: winter | I110: =+I73 -> 3.1889 | J110: =+J73 -> 3.1889 | K110: per kW of G obl /month
B112: Winter - all hrs | C112: =ROUND(($C$33*C75+D75)/10,4) -> 4.997 | H112: Trans cost
B113: PSE&G On pk | E113: =ROUND(($C$33*E76+F76)/10,4) -> 5.285 | H113: all months | I113: =+I76 -> 0 | J113: =+J76 -> 0 | K113: per kW of T obl /month
B114: PSE&G Off pk | E114: =ROUND(($C$33*E77+F77)/10,4) -> 4.817
A118: Table D | B118: Revenue Recovery Calculations - Reconciliation of seasonal Customer Revenue and Supplier Payments, based on actual anticipated revenues and payments
C120: RS | D120: RHS | E120: RLM | F120: WH | G120: WHS | H120: HS | I120: PSAL | J120: BPL
B121: Total Preliminary Rate Revenue - in $1000
B122: Summer | C122: =+C94/100*'Att 2'!O53+'Att 3'!C95/100*'Att 2'!O54 -> 328362.9744 | D122: =+D94/100*'Att 2'!P53+'Att 3'!D95/100*'Att 2'!P54 -> 1128.610147 | E122: =+E91/100*'Att 2'!Q50+E92/100*'Att 2'!Q51 -> 4568.961202 | F122: =+F90/100*'Att 2'!R49 -> 7.617636 | G122: =+G90/100*'Att 2'!S49 -> 0.139347 | H122: =+H90/100*'Att 2'!T49 -> 102.394872 | I122: =+I90/100*'Att 2'!U49 -> 1670.684605 | J122: =+J90/100*'Att 2'!V49 -> 3430.784921
B123: Winter | C123: =+C97/100*'Att 2'!O45 -> 461809.7923 | D123: =+D97/100*'Att 2'!P45 -> 4312.602659 | E123: =+E98/100*'Att 2'!Q46+'Att 3'!E99/100*'Att 2'!Q47 -> 6271.553364 | F123: =+F97/100*'Att 2'!R45 -> 21.258975 | G123: =+G97/100*'Att 2'!S45 -> 0.411048 | H123: =+H97/100*'Att 2'!T45 -> 419.2304696 | I123: =+I97/100*'Att 2'!U45 -> 5172.654864 | J123: =+J97/100*'Att 2'!V45 -> 11100.54473
B124: Total | C124: =+C123+C122 -> 790172.7667 | D124: =+D123+D122 -> 5441.212806 | E124: 10840.51457 | F124: 28.876611 | G124: 0.550395 | H124: 521.6253416 | I124: 6843.339469 | J124: 14531.32965
C127: GLP | D127: GLP | F127: LPL-S | G127: LPL-S
C128: Energy $ | D128: Obligation $ | F128: Energy $ | G128: Obligation $
B130: Summer | C130: =+C108/100*'Att 2'!W49 -> 101888.7002 | D130: =I109*'Att 2'!K147*4+'Att 3'!I113*'Att 2'!K149*4 -> 23349.1258 | F130: =+E109/100*'Att 2'!X50+'Att 3'!E110/100*'Att 2'!X51 -> 74213.25193 | G130: ='Att 3'!J109*'Att 2'!L147*4+'Att 3'!J113*'Att 2'!L149*4 -> 12302.7762
B131: Winter | C131: =+C112/100*'Att 2'!W45 -> 192296.2637 | D131: ='Att 3'!I110*'Att 2'!K147*8+'Att 3'!I113*'Att 2'!K149*8 -> 46698.2516 | F131: =+E113/100*'Att 2'!X46+'Att 3'!E114/100*'Att 2'!X47 -> 152842.211 | G131: ='Att 3'!J110*'Att 2'!L147*8+'Att 3'!J113*'Att 2'!L149*8 -> 24605.5524
B132: Total | C132: =+C131+C130 -> 294184.9639 | D132: =+D131+D130 -> 70047.3774 | F132: =+F131+F130 -> 227055.463 | G132: =+G131+G130 -> 36908.3286
C135: Energy $ | D135: Obligation $ | E135: Total $
B136: Total Summer | C136: =SUM(C122:J122)+C130+F130 -> 515374.1193 | D136: =+D130+G130 -> 35651.902 | E136: =+C136+D136 -> 551026.0213
B137: Total Winter | C137: =SUM(C123:J123)+C131+F131 -> 834246.5231 | D137: =+D131+G131 -> 71303.804 | E137: =+C137+D137 -> 905550.3271
B138: Grand Total | C138: =+C137+C136 -> 1349620.642 | D138: =+D132+G132 -> 106955.706 | E138: =+C138+D138 -> 1456576.348
B141: Total Supplier Payment - in $1000
B142: Summer | C142: =+C25+D25+E25 -> 579787.4647
B143: Winter | C143: =+C26+D26+E26 -> 876632.9417
B144: Total | C144: =+C143+C142 -> 1456420.406 | E144: kWh Rate
E145: Adjustment | F145: rounded to 5 decimal places
B146: Differences - in $1000 | E146: Factors
B147: Summer | C147: =+C142-E136 -> 28761.44342 | E147: =ROUND(1+(C147/C136),5) -> 1.05581
B148: Winter | C148: =+C143-E137 -> -28917.38543 | E148: =ROUND(1+(C148/C137),5) -> 0.96534
B149: Total | C149: =+C144-E138 -> -155.9420056
C151: Note: These differences are due to rounding and seasonal differences in Bidder Payments (which are based on prior
C152: wining bids and Seasonal Payment Factors) and current Rates (based on current seasonal market differentials)
A154: Table E | B154: Final Resulting BGS Rates from Auctions (in cents per kWh) - with preliminary kWh rates adjusted by the kWh Rate Adjustment Factor
B155: rounded to 4 decimal places
B157: NON-DEMAND RATES -----------------------------------------------------------------------------------------------------------------------------------------------------------------------
B158: includes energy, G&T obligations, and Ancillary Services - adjusted to billing time periods & adjustment to energy price
C160: =+C120 -> RS | D160: =+D120 -> RHS | E160: RLM | F160: WH | G160: WHS | H160: HS | I160: PSAL | J160: BPL
B162: Summer - all hrs | F162: =ROUND(+F90*$E$147,4) -> 4.9041 | G162: =ROUND(+G90*$E$147,4) -> 4.9041 | H162: =ROUND(+H90*$E$147,4) -> 6.3875 | I162: =ROUND(+I90*$E$147,4) -> 4.5409 | J162: =ROUND(+J90*$E$147,4) -> 4.5409
B163: PSE&G On pk | E163: =ROUND(+E91*$E$147,4) -> 8.4642
B164: PSE&G Off pk | E164: =ROUND(+E92*$E$147,4) -> 4.3532
B166: for Block 1 (0-600 kWh/m) usage | C166: =ROUND(+C94*$E$147,4) -> 5.9552 | D166: =ROUND(+D94*$E$147,4) -> 5.3014
B167: for Block 2 (>600 kWh/m) usage | C167: =ROUND(+C95*$E$147,4) -> 6.8687 | D167: =ROUND(+D95*$E$147,4) -> 6.5229
B169: Winter - all hrs | C169: =ROUND(+C97*$E$148,4) -> 6.2609 | D169: =ROUND(+D97*$E$148,4) -> 5.8845 | F169: =ROUND(+F97*$E$148,4) -> 4.9932 | G169: =ROUND(+G97*$E$148,4) -> 4.96 | H169: =ROUND(+H97*$E$148,4) -> 6.4214 | I169: =ROUND(+I97*$E$148,4) -> 4.8604 | J169: =ROUND(+J97*$E$148,4) -> 4.8604
B170: PSE&G On pk | E170: =ROUND(+E98*$E$148,4) -> 8.0656
B171: PSE&G Off pk | E171: =ROUND(+E99*$E$148,4) -> 4.711
B175: DEMAND RATES --------------------------------------------------------------------------------------------------------------------------------------------------------------------------------
B176: includes energy and Ancillary Services, G&T obligations charged separately - adjusted to billing time periods & adjustment to energy price
C178: =+C106 -> GLP | E178: =+E106 -> LPL-S | H178: PLUS: | I178: =+C178 -> GLP | J178: =+E178 -> LPL-S
B180: Summer - all hrs | C180: =ROUND(+C108*$E$147,4) -> 4.8223 | H180: Gen Cost
B181: PSE&G On pk | E181: =ROUND(+E109*$E$147,4) -> 5.3352 | H181: summer | I181: =+I109 -> 3.1889 | J181: =+J109 -> 3.1889
B182: PSE&G Off pk | E182: =ROUND(+E110*$E$147,4) -> 4.3532 | H182: winter | I182: =+I110 -> 3.1889 | J182: =+J110 -> 3.1889
B184: Winter - all hrs | C184: =ROUND(+C112*$E$148,4) -> 4.8238 | H184: Trans cost
B185: PSE&G On pk | E185: =ROUND(+E113*$E$148,4) -> 5.1018 | H185: all months | I185: =+I113 -> 0 | J185: =+J113 -> 0
B186: PSE&G Off pk | E186: =ROUND(+E114*$E$148,4) -> 4.65
A190: Table F | B190: Spreadsheet Error Checking - Checking of seasonal Customer Revenue and Supplier Payments, based on final actual anticipated revenues and payments
C192: RS | D192: RHS | E192: RLM | F192: WH | G192: WHS | H192: HS | I192: PSAL | J192: BPL | K192: GLP | L192: LPL-S
B193: Total Rate Revenue - in $1000
B194: Summer | C194: =+C166/100*'Att 2'!O53+'Att 3'!C167/100*'Att 2'!O54 -> 346689.682 | D194: =+D166/100*'Att 2'!P53+'Att 3'!D167/100*'Att 2'!P54 -> 1191.593325 | E194: =+E163/100*'Att 2'!Q50+E164/100*'Att 2'!Q51 -> 4823.944431 | F194: =+F162/100*'Att 2'!R49 -> 8.042724 | G194: =+G162/100*'Att 2'!S49 -> 0.147123 | H194: =+H162/100*'Att 2'!T49 -> 108.1087696 | I194: =+I162/100*'Att 2'!U49 -> 1763.912605 | J194: =+J162/100*'Att 2'!V49 -> 3622.230521 | K194: =+C180/100*'Att 2'!W49+I181*'Att 2'!K147*4+'Att 3'!I185*'Att 2'!K149*4 -> 130924.0873 | L194: =+E181/100*'Att 2'!X50+'Att 3'!E182/100*'Att 2'!X51+'Att 3'!J181*'Att 2'!L147*4+'Att 3'!J185*'Att 2'!L149*4 -> 90657.63324
B195: Winter | C195: =+C169/100*'Att 2'!O45 -> 445803.0634 | D195: =+D169/100*'Att 2'!P45 -> 4163.114004 | E195: =+E170/100*'Att 2'!Q46+'Att 3'!E171/100*'Att 2'!Q47 -> 6054.202561 | F195: =+F169/100*'Att 2'!R45 -> 20.522052 | G195: =+G169/100*'Att 2'!S45 -> 0.3968 | H195: =+H169/100*'Att 2'!T45 -> 404.6973147 | I195: =+I169/100*'Att 2'!U45 -> 4993.380544 | J195: =+J169/100*'Att 2'!V45 -> 10715.82109 | K195: =+C184/100*'Att 2'!W45+'Att 3'!I182*'Att 2'!K147*8+'Att 3'!I185*'Att 2'!K149*8 -> 232329.3737 | L195: =+E185/100*'Att 2'!X46+'Att 3'!E186/100*'Att 2'!X47+'Att 3'!J182*'Att 2'!L147*8+'Att 3'!J185*'Att 2'!L149*8 -> 172149.2599
B196: Total | C196: =+C195+C194 -> 792492.7454 | D196: 5354.707329 | E196: 10878.14699 | F196: 28.564776 | G196: 0.543923 | H196: 512.8060843 | I196: 6757.293149 | J196: 14338.05161 | K196: 363253.4609 | L196: 262806.8931
B198: Total Summer | C198: =SUM(C194:L194) -> 579789.382
B199: Total Winter | C199: =SUM(C195:L195) -> 876633.8314
B200: Grand Total | C200: =+C199+C198 -> 1456423.213
B203: Total Supplier Payment - in $1000
B204: Summer | C204: =+C25+D25+E25 -> 579787.4647
B205: Winter | C205: =+C26+D26+E26 -> 876632.9417
B206: Total | C206: =+C205+C204 -> 1456420.406
B208: Differences - in $1000 | E208: % difference
B209: Summer | C209: =+C198-C204 -> 1.917301777 | E209: =+C209/C198 -> 3.306893567e-06
B210: Winter | C210: =+C199-C205 -> 0.8896440385 | E210: =+C210/C199 -> 1.014841096e-06
B211: Total | C211: =+C200-C206 -> 2.806945816 | E211: =+C211/C200 -> 1.927287199e-06

Sheet Att 4-1
B1: Development of Capacity Proxy Price True-Up - $/MWh
B2: 2022/2023 Delivery Year - Illustrative Data
C3: 2022/23 Delivery Year | E3: Notes:
A4: 1 | B4: Zonal Capacity Price ($/MW-day) | C4: 97.75 | E4: as may be determined by the RPM or its successor or otherwise
A5: 2 | B5: Capacity Proxy Price ($/MW-day) | C5: 162.13 | E5: per Board Orders dated 11/13/2019 and 11/18/2020
A7: 3 | B7: Capacity Proxy Price True-Up - $/MW-day | C7: =C4-C5 -> -64.38 | E7: = line 1 - line 2
A8: 4 | B8: BGS-RSCP Gen Obl - MW | C8: =SUM('Att 2'!C147:L147) -> 7909.7
A9: 5 | B9: Days in Year | C9: 365
A10: 6 | B10: Capacity Proxy Price True-Up Annual Cost | C10: =C7*C8*C9 -> -185867667.4 | E10: = line 3 * line 4 * line 5
A12: 7 | B12: Eligible Tranches | C12: =SUM('Att 3'!C14:D14) -> 57 | E12: from Table A
A13: 8 | B13: Total Tranches | C13: ='Att 3'!E15 -> 85 | E13: from Table A
A14: 9 | B14: % of tranches eligible for payment | C14: =+C12/C13 -> 0.6705882353 | E14: = line 7 / line 8
A16: 10 | B16: Capacity Proxy Price True-Up Cost | C16: =C10*C14 -> -124640671.1 | E16: = line 6 * line 9
A18: 11 | B18: Total Applicable Customer Usage @ bulk system - in MWh | C18: ='Att 2'!C354 -> 25397539.46
A19: 12 | B19: Eligible Customer Usage @ bulk system - in MWh | C19: =+C14*C18 -> 17031291.17 | E19: = line 9 * line 11
A21: 13 | B21: Capacity Proxy Price True-Up - $/MWh | C21: =ROUND(+C16/C19,2) -> -7.32 | E21: = line 10/ line 12 - rounded to 2 decimal places

Sheet Att 4-2
B1: Development of Capacity Proxy Price True-Up - $/MWh
B2: 2023/2024 Delivery Year - Illustrative Data | C2: Capacity Proxy Price True-Up Development for Winning Suppliers from 2021 BGS-RSCP Auction | D2: Capacity Proxy Price True-Up Development for Winning Suppliers from 2022 BGS-RSCP Auction
C3: 2023/24 Delivery Year | D3: 2023/24 Delivery Year | F3: Notes:
A4: 1 | B4: Zonal Capacity Price ($/MW-day) | C4: 170 | D4: 170 | F4: as may be determined by the RPM or its successor or otherwise
A5: 2 | B5: Capacity Proxy Price ($/MW-day) | C5: 166.64 | D5: 128.79 | F5: per Board Orders dated 11/18/2020 and 11/17/2021
A7: 3 | B7: Capacity Proxy Price True-Up - $/MW-day | C7: =C4-C5 -> 3.36 | D7: =D4-D5 -> 41.21 | F7: = line 1 - line 2
A8: 4 | B8: BGS-RSCP Gen Obl - MW | C8: ='Att 4-1'!C8 -> 7909.7 | D8: =C8 -> 7909.7
A9: 5 | B9: Days in Year | C9: 365 | D9: 365
A10: 6 | B10: Capacity Proxy Price True-Up Annual Cost | C10: =C7*C8*C9 -> 9700456.08 | D10: =D7*D8*D9 -> 118974939 | F10: = line 3 * line 4 * line 5
A12: 7 | B12: Eligible Tranches | C12: ='Att 3'!D14 -> 29 | D12: ='Att 3'!E14 -> 28 | F12: from Table A
A13: 8 | B13: Total Tranches | C13: ='Att 4-1'!C13 -> 85 | D13: =C13 -> 85 | F13: from Table A
A14: 9 | B14: % of tranches eligible for payment | C14: =+C12/C13 -> 0.3411764706 | D14: =+D12/D13 -> 0.3294117647 | F14: = line 7 / line 8
A16: 10 | B16: Capacity Proxy Price True-Up Cost | C16: =C10*C14 -> 3309567.368 | D16: =D10*D14 -> 39191744.61 | F16: = line 6 * line 9
A18: 11 | B18: Total Applicable Customer Usage @ bulk system - in MWh | C18: ='Att 4-1'!C18 -> 25397539.46 | D18: =C18 -> 25397539.46
A19: 12 | B19: Eligible Customer Usage @ bulk system - in MWh | C19: =+C14*C18 -> 8665042.875 | D19: =+D14*D18 -> 8366248.293 | F19: = line 9 * line 11
A21: 13 | B21: Capacity Proxy Price True-Up - $/MWh | C21: =ROUND(+C16/C19,2) -> 0.38 | D21: =ROUND(+D16/D19,2) -> 4.68 | F21: = line 10/ line 12 - rounded to 2 decimal places

Sheet Att 4-3
B1: Development of Capacity Proxy Price True-Up - $/MWh
B2: 2024/2025 Delivery Year - Illustrative Data
C3: 2024/25 Delivery Year | E3: Notes:
A4: 1 | B4: Zonal Capacity Price ($/MW-day) | C4: 90 | E4: as may be determined by the RPM or its successor or otherwise
A5: 2 | B5: Capacity Proxy Price ($/MW-day) | C5: 87.98 | E5: per Board Orders dated 11/17/2021
A7: 3 | B7: Capacity Proxy Price True-Up - $/MW-day | C7: =C4-C5 -> 2.02 | E7: = line 1 - line 2
A8: 4 | B8: BGS-RSCP Gen Obl - MW | C8: =SUM('Att 2'!C147:L147) -> 7909.7
A9: 5 | B9: Days in Year | C9: 365
A10: 6 | B10: Capacity Proxy Price True-Up Annual Cost | C10: =C7*C8*C9 -> 5831821.81 | E10: = line 3 * line 4 * line 5
A12: 7 | B12: Eligible Tranches | C12: ='Att 3'!D14 -> 29 | E12: from Table A
A13: 8 | B13: Total Tranches | C13: ='Att 3'!E15 -> 85 | E13: from Table A
A14: 9 | B14: % of tranches eligible for payment | C14: =+C12/C13 -> 0.3411764706 | E14: = line 7 / line 8
A16: 10 | B16: Capacity Proxy Price True-Up Cost | C16: =C10*C14 -> 1989680.382 | E16: = line 6 * line 9
A18: 11 | B18: Total Applicable Customer Usage @ bulk system - in MWh | C18: ='Att 2'!C354 -> 25397539.46
A19: 12 | B19: Eligible Customer Usage @ bulk system - in MWh | C19: =+C14*C18 -> 8665042.875 | E19: = line 9 * line 11
A21: 13 | B21: Capacity Proxy Price True-Up - $/MWh | C21: =ROUND(+C16/C19,2) -> 0.23 | E21: = line 10/ line 12 - rounded to 2 decimal places

Sheet Att 4-4
A1: Table A With Additional Line Item
A2: Calculation of June 2023 to May 2024 BGS-RSCP Rates
A3: Illustrative Purposes Only
A5: Table A | B5: Auction Results
A6: line # | B6: Specific BGS-RSCP Auction >> | C6: remaining portion of 36 month bid - 2021 auction | D6: remaining portion of 36 month bid - 2022 auction | E6: 36 month bid - 2023 auction | G6: Notes:
A8: 1 | B8: Winning Bid - in $/MWh | C8: ='Att 3'!E11 -> 57.48 | D8: =C8 -> 57.48 | E8: =D8 -> 57.48 | G8: winning Bids
A9: 1A | B9: 23/24 Capacity Proxy Price True-up - in $/MWh | C9: ='Att 4-2'!C21 -> 0.38 | D9: ='Att 4-2'!D21 -> 4.68 | G9: entered after 2023 BGS Auction
A10: 1B | B10: Total - in $/MWh | C10: =C8+C9 -> 57.86 | D10: =D8+D9 -> 62.16 | E10: =E8+E9 -> 57.48 | G10: = line 1 + line 1A
A12: 2 | B12: # of Tranches for Bid | C12: 29 | D12: 28 | E12: 28 | G12: from then current Bid
A13: 3 | B13: Total # of Tranches | C13: 85 | D13: 85 | E13: 85 | G13: from then current Bid
B15: Payment Factors
A16: 4 | B16: Summer | C16: 1 | D16: 1 | E16: 1 | G16: from then current Bid Factor Spreadsheet
A17: 5 | B17: Winter | C17: 1 | D17: 1 | E17: 1 | G17: from then current Bid Factor Spreadsheet
B19: Applicable Customer Usage @ bulk system - in MWh
A20: 6 | B20: Summer MWh | C20: ='Att 3'!C21 -> 10110525.06 | G20: from current Bid Factor Spreadsheet
A21: 7 | B21: Winter MWh | C21: ='Att 3'!C22 -> 15287014.4
B23: Total Payment to Suppliers - in $1000
A24: 8 | B24: Summer | C24: =((+C$10)*C$12/C$13*C16*$C20/1000) -> 199586.5225 | D24: =((+D$10)*D$12/D$13*D16*$C20/1000) -> 207025.49 | E24: 191438.6288 | G24: = (1B * (2)/(3) * (4) * (6)) / 1000
A25: 9 | B25: Winter | C25: =((+C$10)*C$12/C$13*C17*$C21/1000) -> 301772.8582 | D25: 313020.5039 | E25: 289453.3231 | G25: = (1B * (2)/(3) * (5) * (7)) / 1000
A26: 10 | B26: Total | C26: =+C25+C24 -> 501359.3807 | D26: =+D25+D24 -> 520045.9939 | E26: =+E25+E24 -> 480891.9519
B28: Average Payment to Suppliers - in $/MWh
A29: 11 | B29: Summer | C29: =ROUND(+SUM(C24:E24)/C20*1000,3) -> 59.151 | G29: = sum(line 8) / (6) - rounded to 2 decimal places
A30: 12 | B30: Winter | C30: =ROUND(+SUM(C25:E25)/C21*1000,3) -> 59.151 | G30: = sum(line 9) / (7) - rounded to 2 decimal places
A32: 13 | B32: Total weighted average | C32: =ROUND(+SUM(C26:E26)/(C20+C21)*1000,3) -> 59.151 | D32: <<< used in calculation of | G32: = sum(line 10) / [ (6) + (7)]
D33: Customer Rates | G33: rounded to 2 decimal places

Sheet Att 4-5
A1: Table A With Additional Line Item
A2: Calculation of June 2024 to May 2025 BGS-RSCP Rates
A3: Illustrative Purposes Only
A5: Table A | B5: Auction Results
A6: line # | B6: Specific BGS-RSCP Auction >> | C6: remaining portion of 36 month bid - 2022 auction | D6: remaining portion of 36 month bid - 2023 auction | E6: 36 month bid - 2024 auction | G6: Notes:
A8: 1 | B8: Winning Bid - in $/MWh | C8: ='Att 3'!E8 -> 57.48 | D8: ='Att 3'!E11 -> 57.48 | E8: =D8 -> 57.48 | G8: winning Bids
A9: 1A | B9: 22/23 Capacity Proxy Price True-up - in $/MWh | C9: ='Att 4-3'!C21 -> 0.23 | G9: entered after 2024 BGS Auction
A10: 1B | B10: Total - in $/MWh | C10: =C8+C9 -> 57.71 | D10: =D8+D9 -> 57.48 | E10: 57.48 | G10: = line 1 + line 1A
A12: 2 | B12: # of Tranches for Bid | C12: ='Att 3'!E14 -> 28 | D12: ='Att 3'!C14 -> 28 | E12: ='Att 3'!D14 -> 29 | G12: from then current Bid
A13: 3 | B13: Total # of Tranches | C13: 85 | D13: 85 | E13: 85 | G13: from then current Bid
B15: Payment Factors
A16: 4 | B16: Summer | C16: 1 | D16: 1 | E16: 1 | G16: from then current Bid Factor Spreadsheet
A17: 5 | B17: Winter | C17: 1 | D17: 1 | E17: 1 | G17: from then current Bid Factor Spreadsheet
B19: Applicable Customer Usage @ bulk system - in MWh
A20: 6 | B20: Summer MWh | C20: ='Att 3'!C21 -> 10110525.06 | G20: from current Bid Factor Spreadsheet
A21: 7 | B21: Winter MWh | C21: ='Att 3'!C22 -> 15287014.4
B23: Total Payment to Suppliers - in $1000
A24: 8 | B24: Summer | C24: =((+C$10)*C$12/C$13*C16*$C20/1000) -> 192204.6498 | D24: =((+D$10)*D$12/D$13*D16*$C20/1000) -> 191438.6288 | E24: 198275.7227 | G24: = (1B * (2)/(3) * (4) * (6)) / 1000
A25: 9 | B25: Winter | C25: =((+C$10)*C$12/C$13*C17*$C21/1000) -> 290611.5392 | D25: 289453.3231 | E25: 299790.9418 | G25: = (1B * (2)/(3) * (5) * (7)) / 1000
A26: 10 | B26: Total | C26: =+C25+C24 -> 482816.189 | D26: =+D25+D24 -> 480891.9519 | E26: =+E25+E24 -> 498066.6644
B28: Average Payment to Suppliers - in $/MWh
A29: 11 | B29: Summer | C29: =ROUND(+SUM(C24:E24)/C20*1000,3) -> 57.556 | G29: = sum(line 8) / (6) - rounded to 2 decimal places
A30: 12 | B30: Winter | C30: =ROUND(+SUM(C25:E25)/C21*1000,3) -> 57.556 | G30: = sum(line 9) / (7) - rounded to 2 decimal places
A32: 13 | B32: Total weighted average | C32: =ROUND(+SUM(C26:E26)/(C20+C21)*1000,3) -> 57.556 | D32: <<< used in calculation of | G32: = sum(line 10) / [ (6) + (7)]
C33: 57.556 | D33: Customer Rates | G33: rounded to 2 decimal places

Sheet Att 5
A1: Development of Assumed Transmission Price in Bids
A2: Calculation for 2020/2021
A4: line # | C4: remaining portion of 36 month bid - 2020 auction | E4: Notes:
A6: 1 | B6: Eligible Tranches | C6: 28
A7: 2 | B7: Total Tranches | C7: ='Att 3'!E15 -> 85
A8: 3 | B8: Tranche % | C8: =C6/C7 -> 0.3294117647 | E8: = line 1 / line 2
A9: 4 | B9: Transmission Obligations (MW) | C9: 6901 | E9: Obligations from filing years
A10: 5 | B10: Adjustment Transmission Obligation (MW) | C10: =C8*C9 -> 2273.270588 | E10: = line 3 * line 4
A11: 6 | B11: NITS Rate ($/MW-yr) | C11: 138497.0843 | E11: NITS Rates from from 2020
A12: 7 | B12: Payment ($/yr) | C12: =C10*C11 -> 314841348.3 | E12: = line 5 * line 6
A13: 8 | B13: Pre Loss Usage (MWh) | C13: 25302921.32 | E13: Applicable usage from filing year
A14: 9 | B14: Allocated Usage (MWh) | C14: =C8*C13 -> 8335079.965 | E14: = line 3 * line 8
A15: 10 | B15: Transmission Price ($/MWh) | C15: =C12/C14 -> 37.77304473 | E15: = line 7 / line 9 (To Attachment 3, Table A, Line 1B)
